{"text_format":"3","workbook":"xlsx","n_sheets":6,"sheets":["แดชบอร์ด","ยอดขาย","รายรับ","ค่าใช้จ่าย","ภาษี","ประเภท"],"not_rendered":{"images":1,"defined_names":34},"read":"whole","date_system":"1900"}

{"sheet":"แดชบอร์ด","index":0,"n_rows":20,"n_cols":8,"rows_kept":20,"merged":[[0,2,0,4],[0,6,3,7],[5,1,5,7]]}
[null,"งบกำไรขาดทุน","สำหรับ [เดือนหรือปี] สิ้นสุด [เดือนวันปี]"]
[null,"ชื่อบริษัท","ระบุเป็น 000s"]
[null,"กำไรขั้นต้นปัจจุบัน  [L/J]",{"$f":"IFERROR(IF(Total_Gross_Profit=0,\"-\",Total_Gross_Profit/Total_Sales_Revenue),\"-\")","v":"-"}]
[null,"อัตราผลตอบแทนจากการขายปัจจุบัน [T/J]",{"$f":"IFERROR(IF(Net_Profit=0,\"-\",Net_Profit/Total_Sales_Revenue),\"-\")","v":"-"}]
[]
[null,"ไม่สามารถปรับเปลี่ยนประเภทในเวิร์กชีตนี้หรือสูตรอาจผิด ใช้เวิร์กชีตประเภทเมื่อต้องการเพิ่มประเภทและอัปเดตเวิร์กชีตที่เกี่ยวข้องกับรายการ เวิร์กชีตนี้จะอัปเดตโดยอัตโนมัติ"]
[null,"สรุป","ยอดรวมรอบระยะเวลาก่อนหน้า","ยอดรวมงบประมาณ","ยอดรวมปัจจุบัน\nรอบระยะเวลา","ยอดรวมรอบระยะเวลาปัจจุบันที่คิดเป็น % ของยอดขาย","ยอดรวม % การเปลี่ยนแปลงจากรอบระยะเวลาก่อนหน้า","ยอดรวม % การเปลี่ยนแปลงทั้งหมดจากงบประมาณ"]
[null,"ยอดรวมรายได้จากการขาย  [J]",{"$f":"SUMIFS(รายได้จากยอดขาย[รอบระยะเวลาก่อนหน้า],รายได้จากยอดขาย[ชนิดรายได้],\"รายได้จากการขาย\")","v":0},{"$f":"SUMIFS(รายได้จากยอดขาย[งบประมาณ],รายได้จากยอดขาย[ชนิดรายได้],\"รายได้จากการขาย\")","v":0},{"$f":"SUMIFS(รายได้จากยอดขาย[รอบระยะเวลาปัจจุบัน],รายได้จากยอดขาย[ชนิดรายได้],\"รายได้จากการขาย\")","v":0},{"$f":"SUMIFS(รายได้จากยอดขาย[รอบระยะเวลาปัจจุบันคิดเป็น % ของยอดขาย],รายได้จากยอดขาย[ชนิดรายได้],\"รายได้จากการขาย\")","v":{"v":0,"d":"0.00%"}},{"$f":"SUMIFS(รายได้จากยอดขาย[% การเปลี่ยนแปลงจากรอบระยะเวลาก่อนหน้า],รายได้จากยอดขาย[ชนิดรายได้],\"รายได้จากการขาย\")","v":{"v":0,"d":"0.00%"}},{"$f":"SUMIFS(รายได้จากยอดขาย[% การเปลี่ยนแปลงจากงบประมาณ],รายได้จากยอดขาย[ชนิดรายได้],\"รายได้จากการขาย\")","v":{"v":0,"d":"0.00%"}}]
[null,"ยอดรวมต้นทุนการขาย  [K]",{"$f":"SUMIFS(รายได้จากยอดขาย[รอบระยะเวลาก่อนหน้า],รายได้จากยอดขาย[ชนิดรายได้],\"ต้นทุนการขาย\")","v":0},{"$f":"SUMIFS(รายได้จากยอดขาย[งบประมาณ],รายได้จากยอดขาย[ชนิดรายได้],\"ต้นทุนการขาย\")","v":0},{"$f":"SUMIFS(รายได้จากยอดขาย[รอบระยะเวลาปัจจุบัน],รายได้จากยอดขาย[ชนิดรายได้],\"ต้นทุนการขาย\")","v":0},{"$f":"SUMIFS(รายได้จากยอดขาย[รอบระยะเวลาปัจจุบันคิดเป็น % ของยอดขาย],รายได้จากยอดขาย[ชนิดรายได้],\"ต้นทุนการขาย\")","v":{"v":0,"d":"0.00%"}},{"$f":"SUMIFS(รายได้จากยอดขาย[% การเปลี่ยนแปลงจากรอบระยะเวลาก่อนหน้า],รายได้จากยอดขาย[ชนิดรายได้],\"ต้นทุนการขาย\")","v":{"v":0,"d":"0.00%"}},{"$f":"SUMIFS(รายได้จากยอดขาย[% การเปลี่ยนแปลงจากงบประมาณ],รายได้จากยอดขาย[ชนิดรายได้],\"ต้นทุนการขาย\")","v":{"v":0,"d":"0.00%"}}]
[null,"ยอดรวมค่าใช้จ่ายในการขายและการตลาด  [M]",{"$f":"SUMIFS(ค่าใช้จ่ายในการดำเนินการ[รอบระยะเวลาก่อนหน้า],ค่าใช้จ่ายในการดำเนินการ[ชนิดค่าใช้จ่าย],\"การขายและการตลาด\")","v":0},{"$f":"SUMIFS(ค่าใช้จ่ายในการดำเนินการ[งบประมาณ],ค่าใช้จ่ายในการดำเนินการ[ชนิดค่าใช้จ่าย],\"การขายและการตลาด\")","v":0},{"$f":"SUMIFS(ค่าใช้จ่ายในการดำเนินการ[รอบระยะเวลาปัจจุบัน],ค่าใช้จ่ายในการดำเนินการ[ชนิดค่าใช้จ่าย],\"การขายและการตลาด\")","v":0},{"$f":"SUMIFS(ค่าใช้จ่ายในการดำเนินการ[รอบระยะเวลาปัจจุบันคิดเป็น % ของยอดขาย],ค่าใช้จ่ายในการดำเนินการ[ชนิดค่าใช้จ่าย],\"การขายและการตลาด\")","v":{"v":0,"d":"0.00%"}},{"$f":"SUMIFS(ค่าใช้จ่ายในการดำเนินการ[% การเปลี่ยนแปลงจากรอบระยะเวลาก่อนหน้า],ค่าใช้จ่ายในการดำเนินการ[ชนิดค่าใช้จ่าย],\"การขายและการตลาด\")","v":{"v":0,"d":"0.00%"}},{"$f":"SUMIFS(ค่าใช้จ่ายในการดำเนินการ[% การเปลี่ยนแปลงจากงบประมาณ],ค่าใช้จ่ายในการดำเนินการ[ชนิดค่าใช้จ่าย],\"การขายและการตลาด\")","v":{"v":0,"d":"0.00%"}}]
[null,"ยอดรวมค่าใช้จ่ายในการค้นคว้าและพัฒนา  [N]",{"$f":"SUMIFS(ค่าใช้จ่ายในการดำเนินการ[รอบระยะเวลาก่อนหน้า],ค่าใช้จ่ายในการดำเนินการ[ชนิดค่าใช้จ่าย],\"การวิจัยและการพัฒนา\")","v":0},{"$f":"SUMIFS(ค่าใช้จ่ายในการดำเนินการ[งบประมาณ],ค่าใช้จ่ายในการดำเนินการ[ชนิดค่าใช้จ่าย],\"การวิจัยและการพัฒนา\")","v":0},{"$f":"SUMIFS(ค่าใช้จ่ายในการดำเนินการ[รอบระยะเวลาปัจจุบัน],ค่าใช้จ่ายในการดำเนินการ[ชนิดค่าใช้จ่าย],\"การวิจัยและการพัฒนา\")","v":0},{"$f":"SUMIFS(ค่าใช้จ่ายในการดำเนินการ[รอบระยะเวลาปัจจุบันคิดเป็น % ของยอดขาย],ค่าใช้จ่ายในการดำเนินการ[ชนิดค่าใช้จ่าย],\"การวิจัยและการพัฒนา\")","v":{"v":0,"d":"0.00%"}},{"$f":"SUMIFS(ค่าใช้จ่ายในการดำเนินการ[% การเปลี่ยนแปลงจากรอบระยะเวลาก่อนหน้า],ค่าใช้จ่ายในการดำเนินการ[ชนิดค่าใช้จ่าย],\"การวิจัยและการพัฒนา\")","v":{"v":0,"d":"0.00%"}},{"$f":"SUMIFS(ค่าใช้จ่ายในการดำเนินการ[% การเปลี่ยนแปลงจากงบประมาณ],ค่าใช้จ่ายในการดำเนินการ[ชนิดค่าใช้จ่าย],\"การวิจัยและการพัฒนา\")","v":{"v":0,"d":"0.00%"}}]
[null,"ยอดรวมค่าใช้จ่ายทั่วไปและที่เกี่ยวกับการบริหาร  [O]",{"$f":"SUMIFS(ค่าใช้จ่ายในการดำเนินการ[รอบระยะเวลาก่อนหน้า],ค่าใช้จ่ายในการดำเนินการ[ชนิดค่าใช้จ่าย],\"General and Adminstrative\")","v":0},{"$f":"SUMIFS(ค่าใช้จ่ายในการดำเนินการ[งบประมาณ],ค่าใช้จ่ายในการดำเนินการ[ชนิดค่าใช้จ่าย],\"General and Adminstrative\")","v":0},{"$f":"SUMIFS(ค่าใช้จ่ายในการดำเนินการ[รอบระยะเวลาปัจจุบัน],ค่าใช้จ่ายในการดำเนินการ[ชนิดค่าใช้จ่าย],\"General and Adminstrative\")","v":0},{"$f":"SUMIFS(ค่าใช้จ่ายในการดำเนินการ[รอบระยะเวลาปัจจุบันคิดเป็น % ของยอดขาย],ค่าใช้จ่ายในการดำเนินการ[ชนิดค่าใช้จ่าย],\"General and Adminstrative\")","v":{"v":0,"d":"0.00%"}},{"$f":"SUMIFS(ค่าใช้จ่ายในการดำเนินการ[% การเปลี่ยนแปลงจากรอบระยะเวลาก่อนหน้า],ค่าใช้จ่ายในการดำเนินการ[ชนิดค่าใช้จ่าย],\"General and Adminstrative\")","v":{"v":0,"d":"0.00%"}},{"$f":"SUMIFS(ค่าใช้จ่ายในการดำเนินการ[% การเปลี่ยนแปลงจากงบประมาณ],ค่าใช้จ่ายในการดำเนินการ[ชนิดค่าใช้จ่าย],\"General and Adminstrative\")","v":{"v":0,"d":"0.00%"}}]
[null,"ยอดรวมค่าใช้จ่ายในการดำเนินการอื่นๆ [P]",{"$f":"ค่าใช้จ่ายในการดำเนินการ[[#Totals],[รอบระยะเวลาก่อนหน้า]]-SUM(C10:C12)","v":0},{"$f":"ค่าใช้จ่ายในการดำเนินการ[[#Totals],[งบประมาณ]]-SUM(D10:D12)","v":0},{"$f":"ค่าใช้จ่ายในการดำเนินการ[[#Totals],[รอบระยะเวลาปัจจุบัน]]-SUM(E10:E12)","v":0},{"$f":"ค่าใช้จ่ายในการดำเนินการ[[#Totals],[รอบระยะเวลาปัจจุบันคิดเป็น % ของยอดขาย]]-SUM(F10:F12)","v":{"v":0,"d":"0.00%"}},{"$f":"ค่าใช้จ่ายในการดำเนินการ[[#Totals],[% การเปลี่ยนแปลงจากรอบระยะเวลาก่อนหน้า]]-SUM(G10:G12)","v":{"v":0,"d":"0.00%"}},{"$f":"ค่าใช้จ่ายในการดำเนินการ[[#Totals],[% การเปลี่ยนแปลงจากงบประมาณ]]-SUM(H10:H12)","v":{"v":0,"d":"0.00%"}}]
[null,"รายรับอื่นๆ  [S]",{"$f":"รายได้[[#Totals],[รอบระยะเวลาก่อนหน้า]]","v":0},{"$f":"รายได้[[#Totals],[งบประมาณ]]","v":0},{"$f":"รายได้[[#Totals],[รอบระยะเวลาปัจจุบัน]]","v":0},{"$f":"รายได้[[#Totals],[รอบระยะเวลาปัจจุบันคิดเป็น % ของยอดขาย]]","v":{"v":0,"d":"0.00%"}},{"$f":"รายได้[[#Totals],[% การเปลี่ยนแปลงจากรอบระยะเวลาก่อนหน้า]]","v":{"v":0,"d":"0.00%"}},{"$f":"รายได้[[#Totals],[% การเปลี่ยนแปลงจากงบประมาณ]]","v":{"v":0,"d":"0.00%"}}]
[null,"ยอดรวมภาษี  [T]",{"$f":"ภาษี[[#Totals],[รอบระยะเวลาก่อนหน้า]]","v":0},{"$f":"ภาษี[[#Totals],[งบประมาณ]]","v":0},{"$f":"ภาษี[[#Totals],[รอบระยะเวลาปัจจุบัน]]","v":0},{"$f":"ภาษี[[#Totals],[รอบระยะเวลาปัจจุบันคิดเป็น % ของยอดขาย]]","v":{"v":0,"d":"0.00%"}},{"$f":"ภาษี[[#Totals],[% การเปลี่ยนแปลงจากรอบระยะเวลาก่อนหน้า]]","v":{"v":0,"d":"0.00%"}},{"$f":"ภาษี[[#Totals],[% การเปลี่ยนแปลงจากงบประมาณ]]","v":{"v":0,"d":"0.00%"}}]
[]
[null,"กำไรขั้นต้น  [L=J-K]",{"$f":"IFERROR(C8-C9,\"-\")","v":0},{"$f":"IFERROR(D8-D9,\"-\")","v":0},{"$f":"IFERROR(Total_Sales_Revenue-Total_Cost_Sales,\"-\")","v":0},{"$f":"IFERROR(IF(Total_Sales_Revenue=0,\"0.00%\",Total_Gross_Profit/Total_Sales_Revenue),\"-\")","v":"0.00%"},{"$f":"IFERROR(IF(C17=Total_Gross_Profit,0,IF(Total_Gross_Profit>C17,ABS((Total_Gross_Profit/C17)-1),IF(AND(Total_Gross_Profit<C17,C17<0),-((Total_Gross_Profit/C17)-1),(Total_Gross_Profit/C17)-1))),\"-\")","v":{"v":0,"d":"0.00%"}},{"$f":"IFERROR(IF(D17=Total_Gross_Profit,0,IF(Total_Gross_Profit>D17,ABS((Total_Gross_Profit/D17)-1),IF(AND(Total_Gross_Profit<D17,D17<0),-((Total_Gross_Profit/D17)-1),(Total_Gross_Profit/D17)-1))),\"-\")","v":{"v":0,"d":"0.00%"}}]
[null,"ยอดรวมค่าใช้จ่ายในการดำเนินการ [Q=M+N+O+P]",{"$f":"IFERROR(C10+C11+C12+C13,\"-\")","v":0},{"$f":"IFERROR(D10+D11+D12+D13,\"-\")","v":0},{"$f":"IFERROR(Total_Sales_and_Marketing+Total_Research_and_Development+Total_General_and_Administrative+Total_Other_Expenses,\"-\")","v":0},{"$f":"IFERROR(IF(Total_Sales_Revenue=0,\"0.00%\",Total_Operating_Expenses/Total_Sales_Revenue),\"-\")","v":"0.00%"},{"$f":"IFERROR(IF(C18=Total_Operating_Expenses,0,IF(Total_Operating_Expenses>C18,ABS((Total_Operating_Expenses/C18)-1),IF(AND(Total_Operating_Expenses<C18,C18<0),-((Total_Operating_Expenses/C18)-1),(Total_Operating_Expenses/C18)-1))),\"-\")","v":{"v":0,"d":"0.00%"}},{"$f":"IFERROR(IF(D18=Total_Operating_Expenses,0,IF(Total_Operating_Expenses>D18,ABS((Total_Operating_Expenses/D18)-1),IF(AND(Total_Operating_Expenses<D18,D18<0),-((Total_Operating_Expenses/D18)-1),(Total_Operating_Expenses/D18)-1))),\"-\")","v":{"v":0,"d":"0.00%"}}]
[null,"รายรับจากการดำเนินการ  [R=L-Q]",{"$f":"IFERROR(C17-C18,\"-\")","v":0},{"$f":"IFERROR(D17-D18,\"-\")","v":0},{"$f":"IFERROR(Total_Gross_Profit-Total_Operating_Expenses,\"-\")","v":0},{"$f":"IFERROR(IF(Total_Sales_Revenue=0,\"0.00%\",Total_Income_Operations/Total_Sales_Revenue),\"-\")","v":"0.00%"},{"$f":"IFERROR(IF(C19=Total_Income_Operations,0,IF(Total_Income_Operations>C19,ABS((Total_Income_Operations/C19)-1),IF(AND(Total_Income_Operations<C19,C19<0),-((Total_Income_Operations/C19)-1),(Total_Income_Operations/C19)-1))),\"-\")","v":{"v":0,"d":"0.00%"}},{"$f":"IFERROR(IF(D19=Total_Income_Operations,0,IF(Total_Income_Operations>D19,ABS((Total_Income_Operations/D19)-1),IF(AND(Total_Income_Operations<D19,D19<0),-((Total_Income_Operations/D19)-1),(Total_Income_Operations/D19)-1))),\"-\")","v":{"v":0,"d":"0.00%"}}]
[null,"กำไรสุทธิ  [U=R+S-T]",{"$f":"IFERROR(C19+C14-C15,\"-\")","v":0},{"$f":"IFERROR(D19+D14-D15,\"-\")","v":0},{"$f":"Total_Income_Operations+Total_Other_Income-Total_Taxes","v":0},{"$f":"IFERROR(IF(Total_Sales_Revenue=0,\"0.00%\",Net_Profit/Total_Sales_Revenue),\"-\")","v":"0.00%"},{"$f":"IFERROR(IF(C20=Net_Profit,0,IF(Net_Profit>C20,ABS((Net_Profit/C20)-1),IF(AND(Net_Profit<C20,C20<0),-((Net_Profit/C20)-1),(Net_Profit/C20)-1))),\"-\")","v":{"v":0,"d":"0.00%"}},{"$f":"IFERROR(IF(D20=Net_Profit,0,IF(Net_Profit>D20,ABS((Net_Profit/D20)-1),IF(AND(Net_Profit<D20,D20<0),-((Net_Profit/D20)-1),(Net_Profit/D20)-1))),\"-\")","v":{"v":0,"d":"0.00%"}}]

{"sheet":"ยอดขาย","index":1,"n_rows":13,"n_cols":9,"rows_kept":13,"merged":[[0,7,2,8]]}
[null,{"$f":"ชื่อเรื่อง_เวิร์กบุ๊ก","v":"งบกำไรขาดทุน"}]
[null,{"$f":"Company_Name","v":"ชื่อบริษัท"},"ระบุเป็น 000s"]
[null,"รายได้จากการขาย",{"$f":"IFERROR(Sales_Revenue,\"-\")","v":0}]
[null,"ชนิดรายได้","คำอธิบาย","รอบระยะเวลาก่อนหน้า","งบประมาณ","รอบระยะเวลาปัจจุบัน","รอบระยะเวลาปัจจุบันคิดเป็น % ของยอดขาย","% การเปลี่ยนแปลงจากรอบระยะเวลาก่อนหน้า","% การเปลี่ยนแปลงจากงบประมาณ"]
[null,"รายได้จากการขาย","ผลิตภัณฑ์/บริการ 1",{"$nulls":3},{"$f":"IFERROR(IF(รายได้จากยอดขาย[[#Totals],[รอบระยะเวลาปัจจุบัน]]=0,\"-\",รายได้จากยอดขาย[[#This Row],[รอบระยะเวลาปัจจุบัน]]/Sales_Revenue),\"-\")","v":"-"},{"$f":"IFERROR(IF(รายได้จากยอดขาย[[#This Row],[รอบระยะเวลาก่อนหน้า]]=รายได้จากยอดขาย[[#This Row],[รอบระยะเวลาปัจจุบัน]],0,IF(รายได้จากยอดขาย[[#This Row],[รอบระยะเวลาปัจจุบัน]]>รายได้จากยอดขาย[[#This Row],[รอบระยะเวลาก่อนหน้า]],ABS((รายได้จากยอดขาย[[#This Row],[รอบระยะเวลาปัจจุบัน]]/รายได้จากยอดขาย[[#This Row],[รอบระยะเวลาก่อนหน้า]])-1),IF(AND(รายได้จากยอดขาย[[#This Row],[รอบระยะเวลาปัจจุบัน]]<รายได้จากยอดขาย[[#This Row],[รอบระยะเวลาก่อนหน้า]],รายได้จากยอดขาย[[#This Row],[รอบระยะเวลาก่อนหน้า]]<0),-((รายได้จากยอดขาย[[#This Row],[รอบระยะเวลาปัจจุบัน]]/รายได้จากยอดขาย[[#This Row],[รอบระยะเวลาก่อนหน้า]])-1),(รายได้จากยอดขาย[[#This Row],[รอบระยะเวลาปัจจุบัน]]/รายได้จากยอดขาย[[#This Row],[รอบระยะเวลาก่อนหน้า]])-1))),\"-\")","v":{"v":0,"d":"0.00%"}},{"$f":"IFERROR(IF(รายได้จากยอดขาย[[#This Row],[งบประมาณ]]=รายได้จากยอดขาย[[#This Row],[รอบระยะเวลาปัจจุบัน]],0,IF(รายได้จากยอดขาย[[#This Row],[รอบระยะเวลาปัจจุบัน]]>รายได้จากยอดขาย[[#This Row],[งบประมาณ]],ABS((รายได้จากยอดขาย[[#This Row],[รอบระยะเวลาปัจจุบัน]]/รายได้จากยอดขาย[[#This Row],[งบประมาณ]])-1),IF(AND(รายได้จากยอดขาย[[#This Row],[รอบระยะเวลาปัจจุบัน]]<รายได้จากยอดขาย[[#This Row],[งบประมาณ]],รายได้จากยอดขาย[[#This Row],[งบประมาณ]]<0),-((รายได้จากยอดขาย[[#This Row],[รอบระยะเวลาปัจจุบัน]]/รายได้จากยอดขาย[[#This Row],[งบประมาณ]])-1),(รายได้จากยอดขาย[[#This Row],[รอบระยะเวลาปัจจุบัน]]/รายได้จากยอดขาย[[#This Row],[งบประมาณ]])-1))),\"-\")","v":{"v":0,"d":"0.00%"}}]
[null,"รายได้จากการขาย","ผลิตภัณฑ์/บริการ 2",{"$nulls":3},{"$f":"IFERROR(IF(รายได้จากยอดขาย[[#Totals],[รอบระยะเวลาปัจจุบัน]]=0,\"-\",รายได้จากยอดขาย[[#This Row],[รอบระยะเวลาปัจจุบัน]]/Sales_Revenue),\"-\")","v":"-"},{"$f":"IFERROR(IF(รายได้จากยอดขาย[[#This Row],[รอบระยะเวลาก่อนหน้า]]=รายได้จากยอดขาย[[#This Row],[รอบระยะเวลาปัจจุบัน]],0,IF(รายได้จากยอดขาย[[#This Row],[รอบระยะเวลาปัจจุบัน]]>รายได้จากยอดขาย[[#This Row],[รอบระยะเวลาก่อนหน้า]],ABS((รายได้จากยอดขาย[[#This Row],[รอบระยะเวลาปัจจุบัน]]/รายได้จากยอดขาย[[#This Row],[รอบระยะเวลาก่อนหน้า]])-1),IF(AND(รายได้จากยอดขาย[[#This Row],[รอบระยะเวลาปัจจุบัน]]<รายได้จากยอดขาย[[#This Row],[รอบระยะเวลาก่อนหน้า]],รายได้จากยอดขาย[[#This Row],[รอบระยะเวลาก่อนหน้า]]<0),-((รายได้จากยอดขาย[[#This Row],[รอบระยะเวลาปัจจุบัน]]/รายได้จากยอดขาย[[#This Row],[รอบระยะเวลาก่อนหน้า]])-1),(รายได้จากยอดขาย[[#This Row],[รอบระยะเวลาปัจจุบัน]]/รายได้จากยอดขาย[[#This Row],[รอบระยะเวลาก่อนหน้า]])-1))),\"-\")","v":{"v":0,"d":"0.00%"}},{"$f":"IFERROR(IF(รายได้จากยอดขาย[[#This Row],[งบประมาณ]]=รายได้จากยอดขาย[[#This Row],[รอบระยะเวลาปัจจุบัน]],0,IF(รายได้จากยอดขาย[[#This Row],[รอบระยะเวลาปัจจุบัน]]>รายได้จากยอดขาย[[#This Row],[งบประมาณ]],ABS((รายได้จากยอดขาย[[#This Row],[รอบระยะเวลาปัจจุบัน]]/รายได้จากยอดขาย[[#This Row],[งบประมาณ]])-1),IF(AND(รายได้จากยอดขาย[[#This Row],[รอบระยะเวลาปัจจุบัน]]<รายได้จากยอดขาย[[#This Row],[งบประมาณ]],รายได้จากยอดขาย[[#This Row],[งบประมาณ]]<0),-((รายได้จากยอดขาย[[#This Row],[รอบระยะเวลาปัจจุบัน]]/รายได้จากยอดขาย[[#This Row],[งบประมาณ]])-1),(รายได้จากยอดขาย[[#This Row],[รอบระยะเวลาปัจจุบัน]]/รายได้จากยอดขาย[[#This Row],[งบประมาณ]])-1))),\"-\")","v":{"v":0,"d":"0.00%"}}]
[null,"รายได้จากการขาย","ผลิตภัณฑ์/บริการ 3",{"$nulls":3},{"$f":"IFERROR(IF(รายได้จากยอดขาย[[#Totals],[รอบระยะเวลาปัจจุบัน]]=0,\"-\",รายได้จากยอดขาย[[#This Row],[รอบระยะเวลาปัจจุบัน]]/Sales_Revenue),\"-\")","v":"-"},{"$f":"IFERROR(IF(รายได้จากยอดขาย[[#This Row],[รอบระยะเวลาก่อนหน้า]]=รายได้จากยอดขาย[[#This Row],[รอบระยะเวลาปัจจุบัน]],0,IF(รายได้จากยอดขาย[[#This Row],[รอบระยะเวลาปัจจุบัน]]>รายได้จากยอดขาย[[#This Row],[รอบระยะเวลาก่อนหน้า]],ABS((รายได้จากยอดขาย[[#This Row],[รอบระยะเวลาปัจจุบัน]]/รายได้จากยอดขาย[[#This Row],[รอบระยะเวลาก่อนหน้า]])-1),IF(AND(รายได้จากยอดขาย[[#This Row],[รอบระยะเวลาปัจจุบัน]]<รายได้จากยอดขาย[[#This Row],[รอบระยะเวลาก่อนหน้า]],รายได้จากยอดขาย[[#This Row],[รอบระยะเวลาก่อนหน้า]]<0),-((รายได้จากยอดขาย[[#This Row],[รอบระยะเวลาปัจจุบัน]]/รายได้จากยอดขาย[[#This Row],[รอบระยะเวลาก่อนหน้า]])-1),(รายได้จากยอดขาย[[#This Row],[รอบระยะเวลาปัจจุบัน]]/รายได้จากยอดขาย[[#This Row],[รอบระยะเวลาก่อนหน้า]])-1))),\"-\")","v":{"v":0,"d":"0.00%"}},{"$f":"IFERROR(IF(รายได้จากยอดขาย[[#This Row],[งบประมาณ]]=รายได้จากยอดขาย[[#This Row],[รอบระยะเวลาปัจจุบัน]],0,IF(รายได้จากยอดขาย[[#This Row],[รอบระยะเวลาปัจจุบัน]]>รายได้จากยอดขาย[[#This Row],[งบประมาณ]],ABS((รายได้จากยอดขาย[[#This Row],[รอบระยะเวลาปัจจุบัน]]/รายได้จากยอดขาย[[#This Row],[งบประมาณ]])-1),IF(AND(รายได้จากยอดขาย[[#This Row],[รอบระยะเวลาปัจจุบัน]]<รายได้จากยอดขาย[[#This Row],[งบประมาณ]],รายได้จากยอดขาย[[#This Row],[งบประมาณ]]<0),-((รายได้จากยอดขาย[[#This Row],[รอบระยะเวลาปัจจุบัน]]/รายได้จากยอดขาย[[#This Row],[งบประมาณ]])-1),(รายได้จากยอดขาย[[#This Row],[รอบระยะเวลาปัจจุบัน]]/รายได้จากยอดขาย[[#This Row],[งบประมาณ]])-1))),\"-\")","v":{"v":0,"d":"0.00%"}}]
[null,"รายได้จากการขาย","ผลิตภัณฑ์/บริการ 4",{"$nulls":3},{"$f":"IFERROR(IF(รายได้จากยอดขาย[[#Totals],[รอบระยะเวลาปัจจุบัน]]=0,\"-\",รายได้จากยอดขาย[[#This Row],[รอบระยะเวลาปัจจุบัน]]/Sales_Revenue),\"-\")","v":"-"},{"$f":"IFERROR(IF(รายได้จากยอดขาย[[#This Row],[รอบระยะเวลาก่อนหน้า]]=รายได้จากยอดขาย[[#This Row],[รอบระยะเวลาปัจจุบัน]],0,IF(รายได้จากยอดขาย[[#This Row],[รอบระยะเวลาปัจจุบัน]]>รายได้จากยอดขาย[[#This Row],[รอบระยะเวลาก่อนหน้า]],ABS((รายได้จากยอดขาย[[#This Row],[รอบระยะเวลาปัจจุบัน]]/รายได้จากยอดขาย[[#This Row],[รอบระยะเวลาก่อนหน้า]])-1),IF(AND(รายได้จากยอดขาย[[#This Row],[รอบระยะเวลาปัจจุบัน]]<รายได้จากยอดขาย[[#This Row],[รอบระยะเวลาก่อนหน้า]],รายได้จากยอดขาย[[#This Row],[รอบระยะเวลาก่อนหน้า]]<0),-((รายได้จากยอดขาย[[#This Row],[รอบระยะเวลาปัจจุบัน]]/รายได้จากยอดขาย[[#This Row],[รอบระยะเวลาก่อนหน้า]])-1),(รายได้จากยอดขาย[[#This Row],[รอบระยะเวลาปัจจุบัน]]/รายได้จากยอดขาย[[#This Row],[รอบระยะเวลาก่อนหน้า]])-1))),\"-\")","v":{"v":0,"d":"0.00%"}},{"$f":"IFERROR(IF(รายได้จากยอดขาย[[#This Row],[งบประมาณ]]=รายได้จากยอดขาย[[#This Row],[รอบระยะเวลาปัจจุบัน]],0,IF(รายได้จากยอดขาย[[#This Row],[รอบระยะเวลาปัจจุบัน]]>รายได้จากยอดขาย[[#This Row],[งบประมาณ]],ABS((รายได้จากยอดขาย[[#This Row],[รอบระยะเวลาปัจจุบัน]]/รายได้จากยอดขาย[[#This Row],[งบประมาณ]])-1),IF(AND(รายได้จากยอดขาย[[#This Row],[รอบระยะเวลาปัจจุบัน]]<รายได้จากยอดขาย[[#This Row],[งบประมาณ]],รายได้จากยอดขาย[[#This Row],[งบประมาณ]]<0),-((รายได้จากยอดขาย[[#This Row],[รอบระยะเวลาปัจจุบัน]]/รายได้จากยอดขาย[[#This Row],[งบประมาณ]])-1),(รายได้จากยอดขาย[[#This Row],[รอบระยะเวลาปัจจุบัน]]/รายได้จากยอดขาย[[#This Row],[งบประมาณ]])-1))),\"-\")","v":{"v":0,"d":"0.00%"}}]
[null,"ต้นทุนการขาย","ผลิตภัณฑ์/บริการ 1",{"$nulls":3},{"$f":"IFERROR(IF(รายได้จากยอดขาย[[#Totals],[รอบระยะเวลาปัจจุบัน]]=0,\"-\",รายได้จากยอดขาย[[#This Row],[รอบระยะเวลาปัจจุบัน]]/Sales_Revenue),\"-\")","v":"-"},{"$f":"IFERROR(IF(รายได้จากยอดขาย[[#This Row],[รอบระยะเวลาก่อนหน้า]]=รายได้จากยอดขาย[[#This Row],[รอบระยะเวลาปัจจุบัน]],0,IF(รายได้จากยอดขาย[[#This Row],[รอบระยะเวลาปัจจุบัน]]>รายได้จากยอดขาย[[#This Row],[รอบระยะเวลาก่อนหน้า]],ABS((รายได้จากยอดขาย[[#This Row],[รอบระยะเวลาปัจจุบัน]]/รายได้จากยอดขาย[[#This Row],[รอบระยะเวลาก่อนหน้า]])-1),IF(AND(รายได้จากยอดขาย[[#This Row],[รอบระยะเวลาปัจจุบัน]]<รายได้จากยอดขาย[[#This Row],[รอบระยะเวลาก่อนหน้า]],รายได้จากยอดขาย[[#This Row],[รอบระยะเวลาก่อนหน้า]]<0),-((รายได้จากยอดขาย[[#This Row],[รอบระยะเวลาปัจจุบัน]]/รายได้จากยอดขาย[[#This Row],[รอบระยะเวลาก่อนหน้า]])-1),(รายได้จากยอดขาย[[#This Row],[รอบระยะเวลาปัจจุบัน]]/รายได้จากยอดขาย[[#This Row],[รอบระยะเวลาก่อนหน้า]])-1))),\"-\")","v":{"v":0,"d":"0.00%"}},{"$f":"IFERROR(IF(รายได้จากยอดขาย[[#This Row],[งบประมาณ]]=รายได้จากยอดขาย[[#This Row],[รอบระยะเวลาปัจจุบัน]],0,IF(รายได้จากยอดขาย[[#This Row],[รอบระยะเวลาปัจจุบัน]]>รายได้จากยอดขาย[[#This Row],[งบประมาณ]],ABS((รายได้จากยอดขาย[[#This Row],[รอบระยะเวลาปัจจุบัน]]/รายได้จากยอดขาย[[#This Row],[งบประมาณ]])-1),IF(AND(รายได้จากยอดขาย[[#This Row],[รอบระยะเวลาปัจจุบัน]]<รายได้จากยอดขาย[[#This Row],[งบประมาณ]],รายได้จากยอดขาย[[#This Row],[งบประมาณ]]<0),-((รายได้จากยอดขาย[[#This Row],[รอบระยะเวลาปัจจุบัน]]/รายได้จากยอดขาย[[#This Row],[งบประมาณ]])-1),(รายได้จากยอดขาย[[#This Row],[รอบระยะเวลาปัจจุบัน]]/รายได้จากยอดขาย[[#This Row],[งบประมาณ]])-1))),\"-\")","v":{"v":0,"d":"0.00%"}}]
[null,"ต้นทุนการขาย","ผลิตภัณฑ์/บริการ 2",{"$nulls":3},{"$f":"IFERROR(IF(รายได้จากยอดขาย[[#Totals],[รอบระยะเวลาปัจจุบัน]]=0,\"-\",รายได้จากยอดขาย[[#This Row],[รอบระยะเวลาปัจจุบัน]]/Sales_Revenue),\"-\")","v":"-"},{"$f":"IFERROR(IF(รายได้จากยอดขาย[[#This Row],[รอบระยะเวลาก่อนหน้า]]=รายได้จากยอดขาย[[#This Row],[รอบระยะเวลาปัจจุบัน]],0,IF(รายได้จากยอดขาย[[#This Row],[รอบระยะเวลาปัจจุบัน]]>รายได้จากยอดขาย[[#This Row],[รอบระยะเวลาก่อนหน้า]],ABS((รายได้จากยอดขาย[[#This Row],[รอบระยะเวลาปัจจุบัน]]/รายได้จากยอดขาย[[#This Row],[รอบระยะเวลาก่อนหน้า]])-1),IF(AND(รายได้จากยอดขาย[[#This Row],[รอบระยะเวลาปัจจุบัน]]<รายได้จากยอดขาย[[#This Row],[รอบระยะเวลาก่อนหน้า]],รายได้จากยอดขาย[[#This Row],[รอบระยะเวลาก่อนหน้า]]<0),-((รายได้จากยอดขาย[[#This Row],[รอบระยะเวลาปัจจุบัน]]/รายได้จากยอดขาย[[#This Row],[รอบระยะเวลาก่อนหน้า]])-1),(รายได้จากยอดขาย[[#This Row],[รอบระยะเวลาปัจจุบัน]]/รายได้จากยอดขาย[[#This Row],[รอบระยะเวลาก่อนหน้า]])-1))),\"-\")","v":{"v":0,"d":"0.00%"}},{"$f":"IFERROR(IF(รายได้จากยอดขาย[[#This Row],[งบประมาณ]]=รายได้จากยอดขาย[[#This Row],[รอบระยะเวลาปัจจุบัน]],0,IF(รายได้จากยอดขาย[[#This Row],[รอบระยะเวลาปัจจุบัน]]>รายได้จากยอดขาย[[#This Row],[งบประมาณ]],ABS((รายได้จากยอดขาย[[#This Row],[รอบระยะเวลาปัจจุบัน]]/รายได้จากยอดขาย[[#This Row],[งบประมาณ]])-1),IF(AND(รายได้จากยอดขาย[[#This Row],[รอบระยะเวลาปัจจุบัน]]<รายได้จากยอดขาย[[#This Row],[งบประมาณ]],รายได้จากยอดขาย[[#This Row],[งบประมาณ]]<0),-((รายได้จากยอดขาย[[#This Row],[รอบระยะเวลาปัจจุบัน]]/รายได้จากยอดขาย[[#This Row],[งบประมาณ]])-1),(รายได้จากยอดขาย[[#This Row],[รอบระยะเวลาปัจจุบัน]]/รายได้จากยอดขาย[[#This Row],[งบประมาณ]])-1))),\"-\")","v":{"v":0,"d":"0.00%"}}]
[null,"ต้นทุนการขาย","ผลิตภัณฑ์/บริการ 3",{"$nulls":3},{"$f":"IFERROR(IF(รายได้จากยอดขาย[[#Totals],[รอบระยะเวลาปัจจุบัน]]=0,\"-\",รายได้จากยอดขาย[[#This Row],[รอบระยะเวลาปัจจุบัน]]/Sales_Revenue),\"-\")","v":"-"},{"$f":"IFERROR(IF(รายได้จากยอดขาย[[#This Row],[รอบระยะเวลาก่อนหน้า]]=รายได้จากยอดขาย[[#This Row],[รอบระยะเวลาปัจจุบัน]],0,IF(รายได้จากยอดขาย[[#This Row],[รอบระยะเวลาปัจจุบัน]]>รายได้จากยอดขาย[[#This Row],[รอบระยะเวลาก่อนหน้า]],ABS((รายได้จากยอดขาย[[#This Row],[รอบระยะเวลาปัจจุบัน]]/รายได้จากยอดขาย[[#This Row],[รอบระยะเวลาก่อนหน้า]])-1),IF(AND(รายได้จากยอดขาย[[#This Row],[รอบระยะเวลาปัจจุบัน]]<รายได้จากยอดขาย[[#This Row],[รอบระยะเวลาก่อนหน้า]],รายได้จากยอดขาย[[#This Row],[รอบระยะเวลาก่อนหน้า]]<0),-((รายได้จากยอดขาย[[#This Row],[รอบระยะเวลาปัจจุบัน]]/รายได้จากยอดขาย[[#This Row],[รอบระยะเวลาก่อนหน้า]])-1),(รายได้จากยอดขาย[[#This Row],[รอบระยะเวลาปัจจุบัน]]/รายได้จากยอดขาย[[#This Row],[รอบระยะเวลาก่อนหน้า]])-1))),\"-\")","v":{"v":0,"d":"0.00%"}},{"$f":"IFERROR(IF(รายได้จากยอดขาย[[#This Row],[งบประมาณ]]=รายได้จากยอดขาย[[#This Row],[รอบระยะเวลาปัจจุบัน]],0,IF(รายได้จากยอดขาย[[#This Row],[รอบระยะเวลาปัจจุบัน]]>รายได้จากยอดขาย[[#This Row],[งบประมาณ]],ABS((รายได้จากยอดขาย[[#This Row],[รอบระยะเวลาปัจจุบัน]]/รายได้จากยอดขาย[[#This Row],[งบประมาณ]])-1),IF(AND(รายได้จากยอดขาย[[#This Row],[รอบระยะเวลาปัจจุบัน]]<รายได้จากยอดขาย[[#This Row],[งบประมาณ]],รายได้จากยอดขาย[[#This Row],[งบประมาณ]]<0),-((รายได้จากยอดขาย[[#This Row],[รอบระยะเวลาปัจจุบัน]]/รายได้จากยอดขาย[[#This Row],[งบประมาณ]])-1),(รายได้จากยอดขาย[[#This Row],[รอบระยะเวลาปัจจุบัน]]/รายได้จากยอดขาย[[#This Row],[งบประมาณ]])-1))),\"-\")","v":{"v":0,"d":"0.00%"}}]
[null,"ต้นทุนการขาย","ผลิตภัณฑ์/บริการ 4",{"$nulls":3},{"$f":"IFERROR(IF(รายได้จากยอดขาย[[#Totals],[รอบระยะเวลาปัจจุบัน]]=0,\"-\",รายได้จากยอดขาย[[#This Row],[รอบระยะเวลาปัจจุบัน]]/Sales_Revenue),\"-\")","v":"-"},{"$f":"IFERROR(IF(รายได้จากยอดขาย[[#This Row],[รอบระยะเวลาก่อนหน้า]]=รายได้จากยอดขาย[[#This Row],[รอบระยะเวลาปัจจุบัน]],0,IF(รายได้จากยอดขาย[[#This Row],[รอบระยะเวลาปัจจุบัน]]>รายได้จากยอดขาย[[#This Row],[รอบระยะเวลาก่อนหน้า]],ABS((รายได้จากยอดขาย[[#This Row],[รอบระยะเวลาปัจจุบัน]]/รายได้จากยอดขาย[[#This Row],[รอบระยะเวลาก่อนหน้า]])-1),IF(AND(รายได้จากยอดขาย[[#This Row],[รอบระยะเวลาปัจจุบัน]]<รายได้จากยอดขาย[[#This Row],[รอบระยะเวลาก่อนหน้า]],รายได้จากยอดขาย[[#This Row],[รอบระยะเวลาก่อนหน้า]]<0),-((รายได้จากยอดขาย[[#This Row],[รอบระยะเวลาปัจจุบัน]]/รายได้จากยอดขาย[[#This Row],[รอบระยะเวลาก่อนหน้า]])-1),(รายได้จากยอดขาย[[#This Row],[รอบระยะเวลาปัจจุบัน]]/รายได้จากยอดขาย[[#This Row],[รอบระยะเวลาก่อนหน้า]])-1))),\"-\")","v":{"v":0,"d":"0.00%"}},{"$f":"IFERROR(IF(รายได้จากยอดขาย[[#This Row],[งบประมาณ]]=รายได้จากยอดขาย[[#This Row],[รอบระยะเวลาปัจจุบัน]],0,IF(รายได้จากยอดขาย[[#This Row],[รอบระยะเวลาปัจจุบัน]]>รายได้จากยอดขาย[[#This Row],[งบประมาณ]],ABS((รายได้จากยอดขาย[[#This Row],[รอบระยะเวลาปัจจุบัน]]/รายได้จากยอดขาย[[#This Row],[งบประมาณ]])-1),IF(AND(รายได้จากยอดขาย[[#This Row],[รอบระยะเวลาปัจจุบัน]]<รายได้จากยอดขาย[[#This Row],[งบประมาณ]],รายได้จากยอดขาย[[#This Row],[งบประมาณ]]<0),-((รายได้จากยอดขาย[[#This Row],[รอบระยะเวลาปัจจุบัน]]/รายได้จากยอดขาย[[#This Row],[งบประมาณ]])-1),(รายได้จากยอดขาย[[#This Row],[รอบระยะเวลาปัจจุบัน]]/รายได้จากยอดขาย[[#This Row],[งบประมาณ]])-1))),\"-\")","v":{"v":0,"d":"0.00%"}}]
[null,"ยอดรวมรายได้จากการขาย",null,{"$f":"SUBTOTAL(109,รายได้จากยอดขาย[รอบระยะเวลาก่อนหน้า])","v":0},{"$f":"SUBTOTAL(109,รายได้จากยอดขาย[งบประมาณ])","v":0},{"$f":"SUBTOTAL(109,รายได้จากยอดขาย[รอบระยะเวลาปัจจุบัน])","v":0},{"$f":"SUBTOTAL(109,รายได้จากยอดขาย[รอบระยะเวลาปัจจุบันคิดเป็น % ของยอดขาย])","v":{"v":0,"d":"0.00%"}},{"$f":"SUBTOTAL(109,รายได้จากยอดขาย[% การเปลี่ยนแปลงจากรอบระยะเวลาก่อนหน้า])","v":{"v":0,"d":"0.00%"}},{"$f":"SUBTOTAL(109,รายได้จากยอดขาย[% การเปลี่ยนแปลงจากงบประมาณ])","v":{"v":0,"d":"0.00%"}}]

{"sheet":"รายรับ","index":2,"n_rows":7,"n_cols":9,"rows_kept":7,"merged":[[0,7,2,8]]}
[null,{"$f":"ชื่อเรื่อง_เวิร์กบุ๊ก","v":"งบกำไรขาดทุน"}]
[null,{"$f":"Company_Name","v":"ชื่อบริษัท"},"ระบุเป็น 000s"]
[null,"รายรับ",{"$f":"IFERROR(รายได้[[#Totals],[รอบระยะเวลาปัจจุบัน]],\"-\")","v":0}]
[null,"ชนิดรายรับ","คำอธิบาย","รอบระยะเวลาก่อนหน้า","งบประมาณ","รอบระยะเวลาปัจจุบัน","รอบระยะเวลาปัจจุบันคิดเป็น % ของยอดขาย","% การเปลี่ยนแปลงจากรอบระยะเวลาก่อนหน้า","% การเปลี่ยนแปลงจากงบประมาณ"]
[null,"รายรับ","รายรับอื่นๆ",{"$nulls":3},{"$f":"IFERROR(IF(Sales_Revenue=0,\"-\",รายได้[[#This Row],[รอบระยะเวลาปัจจุบัน]]/Sales_Revenue),\"-\")","v":"-"},{"$f":"IFERROR(IF(รายได้[[#This Row],[รอบระยะเวลาก่อนหน้า]]=รายได้[[#This Row],[รอบระยะเวลาปัจจุบัน]],0,IF(รายได้[[#This Row],[รอบระยะเวลาปัจจุบัน]]>รายได้[[#This Row],[รอบระยะเวลาก่อนหน้า]],ABS((รายได้[[#This Row],[รอบระยะเวลาปัจจุบัน]]/รายได้[[#This Row],[รอบระยะเวลาก่อนหน้า]])-1),IF(AND(รายได้[[#This Row],[รอบระยะเวลาปัจจุบัน]]<รายได้[[#This Row],[รอบระยะเวลาก่อนหน้า]],รายได้[[#This Row],[รอบระยะเวลาก่อนหน้า]]<0),-((รายได้[[#This Row],[รอบระยะเวลาปัจจุบัน]]/รายได้[[#This Row],[รอบระยะเวลาก่อนหน้า]])-1),(รายได้[[#This Row],[รอบระยะเวลาปัจจุบัน]]/รายได้[[#This Row],[รอบระยะเวลาก่อนหน้า]])-1))),\"-\")","v":{"v":0,"d":"0.00%"}},{"$f":"IFERROR(IF(รายได้[[#This Row],[งบประมาณ]]=รายได้[[#This Row],[รอบระยะเวลาปัจจุบัน]],0,IF(รายได้[[#This Row],[รอบระยะเวลาปัจจุบัน]]>รายได้[[#This Row],[งบประมาณ]],ABS((รายได้[[#This Row],[รอบระยะเวลาปัจจุบัน]]/รายได้[[#This Row],[งบประมาณ]])-1),IF(AND(รายได้[[#This Row],[รอบระยะเวลาปัจจุบัน]]<รายได้[[#This Row],[งบประมาณ]],รายได้[[#This Row],[งบประมาณ]]<0),-((รายได้[[#This Row],[รอบระยะเวลาปัจจุบัน]]/รายได้[[#This Row],[งบประมาณ]])-1),(รายได้[[#This Row],[รอบระยะเวลาปัจจุบัน]]/รายได้[[#This Row],[งบประมาณ]])-1))),\"-\")","v":{"v":0,"d":"0.00%"}}]
[{"$nulls":6},{"$f":"IFERROR(IF(Sales_Revenue=0,\"-\",รายได้[[#This Row],[รอบระยะเวลาปัจจุบัน]]/Sales_Revenue),\"-\")","v":"-"},{"$f":"IFERROR(IF(รายได้[[#This Row],[รอบระยะเวลาก่อนหน้า]]=รายได้[[#This Row],[รอบระยะเวลาปัจจุบัน]],0,IF(รายได้[[#This Row],[รอบระยะเวลาปัจจุบัน]]>รายได้[[#This Row],[รอบระยะเวลาก่อนหน้า]],ABS((รายได้[[#This Row],[รอบระยะเวลาปัจจุบัน]]/รายได้[[#This Row],[รอบระยะเวลาก่อนหน้า]])-1),IF(AND(รายได้[[#This Row],[รอบระยะเวลาปัจจุบัน]]<รายได้[[#This Row],[รอบระยะเวลาก่อนหน้า]],รายได้[[#This Row],[รอบระยะเวลาก่อนหน้า]]<0),-((รายได้[[#This Row],[รอบระยะเวลาปัจจุบัน]]/รายได้[[#This Row],[รอบระยะเวลาก่อนหน้า]])-1),(รายได้[[#This Row],[รอบระยะเวลาปัจจุบัน]]/รายได้[[#This Row],[รอบระยะเวลาก่อนหน้า]])-1))),\"-\")","v":{"v":0,"d":"0.00%"}},{"$f":"IFERROR(IF(รายได้[[#This Row],[งบประมาณ]]=รายได้[[#This Row],[รอบระยะเวลาปัจจุบัน]],0,IF(รายได้[[#This Row],[รอบระยะเวลาปัจจุบัน]]>รายได้[[#This Row],[งบประมาณ]],ABS((รายได้[[#This Row],[รอบระยะเวลาปัจจุบัน]]/รายได้[[#This Row],[งบประมาณ]])-1),IF(AND(รายได้[[#This Row],[รอบระยะเวลาปัจจุบัน]]<รายได้[[#This Row],[งบประมาณ]],รายได้[[#This Row],[งบประมาณ]]<0),-((รายได้[[#This Row],[รอบระยะเวลาปัจจุบัน]]/รายได้[[#This Row],[งบประมาณ]])-1),(รายได้[[#This Row],[รอบระยะเวลาปัจจุบัน]]/รายได้[[#This Row],[งบประมาณ]])-1))),\"-\")","v":{"v":0,"d":"0.00%"}}]
[null,"ยอดรวมรายรับจากการขาย",null,{"$f":"SUBTOTAL(109,รายได้[รอบระยะเวลาก่อนหน้า])","v":0},{"$f":"SUBTOTAL(109,รายได้[งบประมาณ])","v":0},{"$f":"SUBTOTAL(109,รายได้[รอบระยะเวลาปัจจุบัน])","v":0},{"$f":"SUBTOTAL(109,รายได้[รอบระยะเวลาปัจจุบันคิดเป็น % ของยอดขาย])","v":{"v":0,"d":"0.00%"}},{"$f":"SUBTOTAL(109,รายได้[% การเปลี่ยนแปลงจากรอบระยะเวลาก่อนหน้า])","v":{"v":0,"d":"0.00%"}},{"$f":"SUBTOTAL(109,รายได้[% การเปลี่ยนแปลงจากงบประมาณ])","v":{"v":0,"d":"0.00%"}}]

{"sheet":"ค่าใช้จ่าย","index":3,"n_rows":25,"n_cols":9,"rows_kept":25,"merged":[[0,7,2,8]]}
[null,{"$f":"ชื่อเรื่อง_เวิร์กบุ๊ก","v":"งบกำไรขาดทุน"}]
[null,{"$f":"Company_Name","v":"ชื่อบริษัท"},"ระบุเป็น 000s"]
[null,"ค่าใช้จ่ายในการดำเนินการ",{"$f":"IFERROR(ค่าใช้จ่ายในการดำเนินการ[[#Totals],[รอบระยะเวลาปัจจุบัน]],\"-\")","v":0}]
[null,"ชนิดค่าใช้จ่าย","คำอธิบาย","รอบระยะเวลาก่อนหน้า","งบประมาณ","รอบระยะเวลาปัจจุบัน","รอบระยะเวลาปัจจุบันคิดเป็น % ของยอดขาย","% การเปลี่ยนแปลงจากรอบระยะเวลาก่อนหน้า","% การเปลี่ยนแปลงจากงบประมาณ"]
[null,"การขายและการตลาด","การโฆษณา",{"$nulls":3},{"$f":"IFERROR(IF(Sales_Revenue=0,\"-\",ค่าใช้จ่ายในการดำเนินการ[[#This Row],[รอบระยะเวลาปัจจุบัน]]/Sales_Revenue),\"-\")","v":"-"},{"$f":"IFERROR(IF(ค่าใช้จ่ายในการดำเนินการ[[#This Row],[รอบระยะเวลาก่อนหน้า]]=ค่าใช้จ่ายในการดำเนินการ[[#This Row],[รอบระยะเวลาปัจจุบัน]],0,IF(ค่าใช้จ่ายในการดำเนินการ[[#This Row],[รอบระยะเวลาปัจจุบัน]]>ค่าใช้จ่ายในการดำเนินการ[[#This Row],[รอบระยะเวลาก่อนหน้า]],ABS((ค่าใช้จ่ายในการดำเนินการ[[#This Row],[รอบระยะเวลาปัจจุบัน]]/ค่าใช้จ่ายในการดำเนินการ[[#This Row],[รอบระยะเวลาก่อนหน้า]])-1),IF(AND(ค่าใช้จ่ายในการดำเนินการ[[#This Row],[รอบระยะเวลาปัจจุบัน]]<ค่าใช้จ่ายในการดำเนินการ[[#This Row],[รอบระยะเวลาก่อนหน้า]],ค่าใช้จ่ายในการดำเนินการ[[#This Row],[รอบระยะเวลาก่อนหน้า]]<0),-((ค่าใช้จ่ายในการดำเนินการ[[#This Row],[รอบระยะเวลาปัจจุบัน]]/ค่าใช้จ่ายในการดำเนินการ[[#This Row],[รอบระยะเวลาก่อนหน้า]])-1),(ค่าใช้จ่ายในการดำเนินการ[[#This Row],[รอบระยะเวลาปัจจุบัน]]/ค่าใช้จ่ายในการดำเนินการ[[#This Row],[รอบระยะเวลาก่อนหน้า]])-1))),\"-\")","v":{"v":0,"d":"0.00%"}},{"$f":"IFERROR(IF(ค่าใช้จ่ายในการดำเนินการ[[#This Row],[งบประมาณ]]=ค่าใช้จ่ายในการดำเนินการ[[#This Row],[รอบระยะเวลาปัจจุบัน]],0,IF(ค่าใช้จ่ายในการดำเนินการ[[#This Row],[รอบระยะเวลาปัจจุบัน]]>ค่าใช้จ่ายในการดำเนินการ[[#This Row],[งบประมาณ]],ABS((ค่าใช้จ่ายในการดำเนินการ[[#This Row],[รอบระยะเวลาปัจจุบัน]]/ค่าใช้จ่ายในการดำเนินการ[[#This Row],[งบประมาณ]])-1),IF(AND(ค่าใช้จ่ายในการดำเนินการ[[#This Row],[รอบระยะเวลาปัจจุบัน]]<ค่าใช้จ่ายในการดำเนินการ[[#This Row],[งบประมาณ]],ค่าใช้จ่ายในการดำเนินการ[[#This Row],[งบประมาณ]]<0),-((ค่าใช้จ่ายในการดำเนินการ[[#This Row],[รอบระยะเวลาปัจจุบัน]]/ค่าใช้จ่ายในการดำเนินการ[[#This Row],[งบประมาณ]])-1),(ค่าใช้จ่ายในการดำเนินการ[[#This Row],[รอบระยะเวลาปัจจุบัน]]/ค่าใช้จ่ายในการดำเนินการ[[#This Row],[งบประมาณ]])-1))),\"-\")","v":{"v":0,"d":"0.00%"}}]
[null,"การขายและการตลาด","การตลาดทางตรง",{"$nulls":3},{"$f":"IFERROR(IF(Sales_Revenue=0,\"-\",ค่าใช้จ่ายในการดำเนินการ[[#This Row],[รอบระยะเวลาปัจจุบัน]]/Sales_Revenue),\"-\")","v":"-"},{"$f":"IFERROR(IF(ค่าใช้จ่ายในการดำเนินการ[[#This Row],[รอบระยะเวลาก่อนหน้า]]=ค่าใช้จ่ายในการดำเนินการ[[#This Row],[รอบระยะเวลาปัจจุบัน]],0,IF(ค่าใช้จ่ายในการดำเนินการ[[#This Row],[รอบระยะเวลาปัจจุบัน]]>ค่าใช้จ่ายในการดำเนินการ[[#This Row],[รอบระยะเวลาก่อนหน้า]],ABS((ค่าใช้จ่ายในการดำเนินการ[[#This Row],[รอบระยะเวลาปัจจุบัน]]/ค่าใช้จ่ายในการดำเนินการ[[#This Row],[รอบระยะเวลาก่อนหน้า]])-1),IF(AND(ค่าใช้จ่ายในการดำเนินการ[[#This Row],[รอบระยะเวลาปัจจุบัน]]<ค่าใช้จ่ายในการดำเนินการ[[#This Row],[รอบระยะเวลาก่อนหน้า]],ค่าใช้จ่ายในการดำเนินการ[[#This Row],[รอบระยะเวลาก่อนหน้า]]<0),-((ค่าใช้จ่ายในการดำเนินการ[[#This Row],[รอบระยะเวลาปัจจุบัน]]/ค่าใช้จ่ายในการดำเนินการ[[#This Row],[รอบระยะเวลาก่อนหน้า]])-1),(ค่าใช้จ่ายในการดำเนินการ[[#This Row],[รอบระยะเวลาปัจจุบัน]]/ค่าใช้จ่ายในการดำเนินการ[[#This Row],[รอบระยะเวลาก่อนหน้า]])-1))),\"-\")","v":{"v":0,"d":"0.00%"}},{"$f":"IFERROR(IF(ค่าใช้จ่ายในการดำเนินการ[[#This Row],[งบประมาณ]]=ค่าใช้จ่ายในการดำเนินการ[[#This Row],[รอบระยะเวลาปัจจุบัน]],0,IF(ค่าใช้จ่ายในการดำเนินการ[[#This Row],[รอบระยะเวลาปัจจุบัน]]>ค่าใช้จ่ายในการดำเนินการ[[#This Row],[งบประมาณ]],ABS((ค่าใช้จ่ายในการดำเนินการ[[#This Row],[รอบระยะเวลาปัจจุบัน]]/ค่าใช้จ่ายในการดำเนินการ[[#This Row],[งบประมาณ]])-1),IF(AND(ค่าใช้จ่ายในการดำเนินการ[[#This Row],[รอบระยะเวลาปัจจุบัน]]<ค่าใช้จ่ายในการดำเนินการ[[#This Row],[งบประมาณ]],ค่าใช้จ่ายในการดำเนินการ[[#This Row],[งบประมาณ]]<0),-((ค่าใช้จ่ายในการดำเนินการ[[#This Row],[รอบระยะเวลาปัจจุบัน]]/ค่าใช้จ่ายในการดำเนินการ[[#This Row],[งบประมาณ]])-1),(ค่าใช้จ่ายในการดำเนินการ[[#This Row],[รอบระยะเวลาปัจจุบัน]]/ค่าใช้จ่ายในการดำเนินการ[[#This Row],[งบประมาณ]])-1))),\"-\")","v":{"v":0,"d":"0.00%"}}]
[null,"การขายและการตลาด","ค่าใช้จ่ายอื่นๆ (โปรดระบุ)",{"$nulls":3},{"$f":"IFERROR(IF(Sales_Revenue=0,\"-\",ค่าใช้จ่ายในการดำเนินการ[[#This Row],[รอบระยะเวลาปัจจุบัน]]/Sales_Revenue),\"-\")","v":"-"},{"$f":"IFERROR(IF(ค่าใช้จ่ายในการดำเนินการ[[#This Row],[รอบระยะเวลาก่อนหน้า]]=ค่าใช้จ่ายในการดำเนินการ[[#This Row],[รอบระยะเวลาปัจจุบัน]],0,IF(ค่าใช้จ่ายในการดำเนินการ[[#This Row],[รอบระยะเวลาปัจจุบัน]]>ค่าใช้จ่ายในการดำเนินการ[[#This Row],[รอบระยะเวลาก่อนหน้า]],ABS((ค่าใช้จ่ายในการดำเนินการ[[#This Row],[รอบระยะเวลาปัจจุบัน]]/ค่าใช้จ่ายในการดำเนินการ[[#This Row],[รอบระยะเวลาก่อนหน้า]])-1),IF(AND(ค่าใช้จ่ายในการดำเนินการ[[#This Row],[รอบระยะเวลาปัจจุบัน]]<ค่าใช้จ่ายในการดำเนินการ[[#This Row],[รอบระยะเวลาก่อนหน้า]],ค่าใช้จ่ายในการดำเนินการ[[#This Row],[รอบระยะเวลาก่อนหน้า]]<0),-((ค่าใช้จ่ายในการดำเนินการ[[#This Row],[รอบระยะเวลาปัจจุบัน]]/ค่าใช้จ่ายในการดำเนินการ[[#This Row],[รอบระยะเวลาก่อนหน้า]])-1),(ค่าใช้จ่ายในการดำเนินการ[[#This Row],[รอบระยะเวลาปัจจุบัน]]/ค่าใช้จ่ายในการดำเนินการ[[#This Row],[รอบระยะเวลาก่อนหน้า]])-1))),\"-\")","v":{"v":0,"d":"0.00%"}},{"$f":"IFERROR(IF(ค่าใช้จ่ายในการดำเนินการ[[#This Row],[งบประมาณ]]=ค่าใช้จ่ายในการดำเนินการ[[#This Row],[รอบระยะเวลาปัจจุบัน]],0,IF(ค่าใช้จ่ายในการดำเนินการ[[#This Row],[รอบระยะเวลาปัจจุบัน]]>ค่าใช้จ่ายในการดำเนินการ[[#This Row],[งบประมาณ]],ABS((ค่าใช้จ่ายในการดำเนินการ[[#This Row],[รอบระยะเวลาปัจจุบัน]]/ค่าใช้จ่ายในการดำเนินการ[[#This Row],[งบประมาณ]])-1),IF(AND(ค่าใช้จ่ายในการดำเนินการ[[#This Row],[รอบระยะเวลาปัจจุบัน]]<ค่าใช้จ่ายในการดำเนินการ[[#This Row],[งบประมาณ]],ค่าใช้จ่ายในการดำเนินการ[[#This Row],[งบประมาณ]]<0),-((ค่าใช้จ่ายในการดำเนินการ[[#This Row],[รอบระยะเวลาปัจจุบัน]]/ค่าใช้จ่ายในการดำเนินการ[[#This Row],[งบประมาณ]])-1),(ค่าใช้จ่ายในการดำเนินการ[[#This Row],[รอบระยะเวลาปัจจุบัน]]/ค่าใช้จ่ายในการดำเนินการ[[#This Row],[งบประมาณ]])-1))),\"-\")","v":{"v":0,"d":"0.00%"}}]
[null,"การขายและการตลาด","ค่าใช้จ่ายอื่นๆ (โปรดระบุ)",{"$nulls":3},{"$f":"IFERROR(IF(Sales_Revenue=0,\"-\",ค่าใช้จ่ายในการดำเนินการ[[#This Row],[รอบระยะเวลาปัจจุบัน]]/Sales_Revenue),\"-\")","v":"-"},{"$f":"IFERROR(IF(ค่าใช้จ่ายในการดำเนินการ[[#This Row],[รอบระยะเวลาก่อนหน้า]]=ค่าใช้จ่ายในการดำเนินการ[[#This Row],[รอบระยะเวลาปัจจุบัน]],0,IF(ค่าใช้จ่ายในการดำเนินการ[[#This Row],[รอบระยะเวลาปัจจุบัน]]>ค่าใช้จ่ายในการดำเนินการ[[#This Row],[รอบระยะเวลาก่อนหน้า]],ABS((ค่าใช้จ่ายในการดำเนินการ[[#This Row],[รอบระยะเวลาปัจจุบัน]]/ค่าใช้จ่ายในการดำเนินการ[[#This Row],[รอบระยะเวลาก่อนหน้า]])-1),IF(AND(ค่าใช้จ่ายในการดำเนินการ[[#This Row],[รอบระยะเวลาปัจจุบัน]]<ค่าใช้จ่ายในการดำเนินการ[[#This Row],[รอบระยะเวลาก่อนหน้า]],ค่าใช้จ่ายในการดำเนินการ[[#This Row],[รอบระยะเวลาก่อนหน้า]]<0),-((ค่าใช้จ่ายในการดำเนินการ[[#This Row],[รอบระยะเวลาปัจจุบัน]]/ค่าใช้จ่ายในการดำเนินการ[[#This Row],[รอบระยะเวลาก่อนหน้า]])-1),(ค่าใช้จ่ายในการดำเนินการ[[#This Row],[รอบระยะเวลาปัจจุบัน]]/ค่าใช้จ่ายในการดำเนินการ[[#This Row],[รอบระยะเวลาก่อนหน้า]])-1))),\"-\")","v":{"v":0,"d":"0.00%"}},{"$f":"IFERROR(IF(ค่าใช้จ่ายในการดำเนินการ[[#This Row],[งบประมาณ]]=ค่าใช้จ่ายในการดำเนินการ[[#This Row],[รอบระยะเวลาปัจจุบัน]],0,IF(ค่าใช้จ่ายในการดำเนินการ[[#This Row],[รอบระยะเวลาปัจจุบัน]]>ค่าใช้จ่ายในการดำเนินการ[[#This Row],[งบประมาณ]],ABS((ค่าใช้จ่ายในการดำเนินการ[[#This Row],[รอบระยะเวลาปัจจุบัน]]/ค่าใช้จ่ายในการดำเนินการ[[#This Row],[งบประมาณ]])-1),IF(AND(ค่าใช้จ่ายในการดำเนินการ[[#This Row],[รอบระยะเวลาปัจจุบัน]]<ค่าใช้จ่ายในการดำเนินการ[[#This Row],[งบประมาณ]],ค่าใช้จ่ายในการดำเนินการ[[#This Row],[งบประมาณ]]<0),-((ค่าใช้จ่ายในการดำเนินการ[[#This Row],[รอบระยะเวลาปัจจุบัน]]/ค่าใช้จ่ายในการดำเนินการ[[#This Row],[งบประมาณ]])-1),(ค่าใช้จ่ายในการดำเนินการ[[#This Row],[รอบระยะเวลาปัจจุบัน]]/ค่าใช้จ่ายในการดำเนินการ[[#This Row],[งบประมาณ]])-1))),\"-\")","v":{"v":0,"d":"0.00%"}}]
[null,"การวิจัยและการพัฒนา","สิทธิ์การใช้งานเทคโนโลยี",{"$nulls":3},{"$f":"IFERROR(IF(Sales_Revenue=0,\"-\",ค่าใช้จ่ายในการดำเนินการ[[#This Row],[รอบระยะเวลาปัจจุบัน]]/Sales_Revenue),\"-\")","v":"-"},{"$f":"IFERROR(IF(ค่าใช้จ่ายในการดำเนินการ[[#This Row],[รอบระยะเวลาก่อนหน้า]]=ค่าใช้จ่ายในการดำเนินการ[[#This Row],[รอบระยะเวลาปัจจุบัน]],0,IF(ค่าใช้จ่ายในการดำเนินการ[[#This Row],[รอบระยะเวลาปัจจุบัน]]>ค่าใช้จ่ายในการดำเนินการ[[#This Row],[รอบระยะเวลาก่อนหน้า]],ABS((ค่าใช้จ่ายในการดำเนินการ[[#This Row],[รอบระยะเวลาปัจจุบัน]]/ค่าใช้จ่ายในการดำเนินการ[[#This Row],[รอบระยะเวลาก่อนหน้า]])-1),IF(AND(ค่าใช้จ่ายในการดำเนินการ[[#This Row],[รอบระยะเวลาปัจจุบัน]]<ค่าใช้จ่ายในการดำเนินการ[[#This Row],[รอบระยะเวลาก่อนหน้า]],ค่าใช้จ่ายในการดำเนินการ[[#This Row],[รอบระยะเวลาก่อนหน้า]]<0),-((ค่าใช้จ่ายในการดำเนินการ[[#This Row],[รอบระยะเวลาปัจจุบัน]]/ค่าใช้จ่ายในการดำเนินการ[[#This Row],[รอบระยะเวลาก่อนหน้า]])-1),(ค่าใช้จ่ายในการดำเนินการ[[#This Row],[รอบระยะเวลาปัจจุบัน]]/ค่าใช้จ่ายในการดำเนินการ[[#This Row],[รอบระยะเวลาก่อนหน้า]])-1))),\"-\")","v":{"v":0,"d":"0.00%"}},{"$f":"IFERROR(IF(ค่าใช้จ่ายในการดำเนินการ[[#This Row],[งบประมาณ]]=ค่าใช้จ่ายในการดำเนินการ[[#This Row],[รอบระยะเวลาปัจจุบัน]],0,IF(ค่าใช้จ่ายในการดำเนินการ[[#This Row],[รอบระยะเวลาปัจจุบัน]]>ค่าใช้จ่ายในการดำเนินการ[[#This Row],[งบประมาณ]],ABS((ค่าใช้จ่ายในการดำเนินการ[[#This Row],[รอบระยะเวลาปัจจุบัน]]/ค่าใช้จ่ายในการดำเนินการ[[#This Row],[งบประมาณ]])-1),IF(AND(ค่าใช้จ่ายในการดำเนินการ[[#This Row],[รอบระยะเวลาปัจจุบัน]]<ค่าใช้จ่ายในการดำเนินการ[[#This Row],[งบประมาณ]],ค่าใช้จ่ายในการดำเนินการ[[#This Row],[งบประมาณ]]<0),-((ค่าใช้จ่ายในการดำเนินการ[[#This Row],[รอบระยะเวลาปัจจุบัน]]/ค่าใช้จ่ายในการดำเนินการ[[#This Row],[งบประมาณ]])-1),(ค่าใช้จ่ายในการดำเนินการ[[#This Row],[รอบระยะเวลาปัจจุบัน]]/ค่าใช้จ่ายในการดำเนินการ[[#This Row],[งบประมาณ]])-1))),\"-\")","v":{"v":0,"d":"0.00%"}}]
[null,"การวิจัยและการพัฒนา","สิทธิ ",{"$nulls":3},{"$f":"IFERROR(IF(Sales_Revenue=0,\"-\",ค่าใช้จ่ายในการดำเนินการ[[#This Row],[รอบระยะเวลาปัจจุบัน]]/Sales_Revenue),\"-\")","v":"-"},{"$f":"IFERROR(IF(ค่าใช้จ่ายในการดำเนินการ[[#This Row],[รอบระยะเวลาก่อนหน้า]]=ค่าใช้จ่ายในการดำเนินการ[[#This Row],[รอบระยะเวลาปัจจุบัน]],0,IF(ค่าใช้จ่ายในการดำเนินการ[[#This Row],[รอบระยะเวลาปัจจุบัน]]>ค่าใช้จ่ายในการดำเนินการ[[#This Row],[รอบระยะเวลาก่อนหน้า]],ABS((ค่าใช้จ่ายในการดำเนินการ[[#This Row],[รอบระยะเวลาปัจจุบัน]]/ค่าใช้จ่ายในการดำเนินการ[[#This Row],[รอบระยะเวลาก่อนหน้า]])-1),IF(AND(ค่าใช้จ่ายในการดำเนินการ[[#This Row],[รอบระยะเวลาปัจจุบัน]]<ค่าใช้จ่ายในการดำเนินการ[[#This Row],[รอบระยะเวลาก่อนหน้า]],ค่าใช้จ่ายในการดำเนินการ[[#This Row],[รอบระยะเวลาก่อนหน้า]]<0),-((ค่าใช้จ่ายในการดำเนินการ[[#This Row],[รอบระยะเวลาปัจจุบัน]]/ค่าใช้จ่ายในการดำเนินการ[[#This Row],[รอบระยะเวลาก่อนหน้า]])-1),(ค่าใช้จ่ายในการดำเนินการ[[#This Row],[รอบระยะเวลาปัจจุบัน]]/ค่าใช้จ่ายในการดำเนินการ[[#This Row],[รอบระยะเวลาก่อนหน้า]])-1))),\"-\")","v":{"v":0,"d":"0.00%"}},{"$f":"IFERROR(IF(ค่าใช้จ่ายในการดำเนินการ[[#This Row],[งบประมาณ]]=ค่าใช้จ่ายในการดำเนินการ[[#This Row],[รอบระยะเวลาปัจจุบัน]],0,IF(ค่าใช้จ่ายในการดำเนินการ[[#This Row],[รอบระยะเวลาปัจจุบัน]]>ค่าใช้จ่ายในการดำเนินการ[[#This Row],[งบประมาณ]],ABS((ค่าใช้จ่ายในการดำเนินการ[[#This Row],[รอบระยะเวลาปัจจุบัน]]/ค่าใช้จ่ายในการดำเนินการ[[#This Row],[งบประมาณ]])-1),IF(AND(ค่าใช้จ่ายในการดำเนินการ[[#This Row],[รอบระยะเวลาปัจจุบัน]]<ค่าใช้จ่ายในการดำเนินการ[[#This Row],[งบประมาณ]],ค่าใช้จ่ายในการดำเนินการ[[#This Row],[งบประมาณ]]<0),-((ค่าใช้จ่ายในการดำเนินการ[[#This Row],[รอบระยะเวลาปัจจุบัน]]/ค่าใช้จ่ายในการดำเนินการ[[#This Row],[งบประมาณ]])-1),(ค่าใช้จ่ายในการดำเนินการ[[#This Row],[รอบระยะเวลาปัจจุบัน]]/ค่าใช้จ่ายในการดำเนินการ[[#This Row],[งบประมาณ]])-1))),\"-\")","v":{"v":0,"d":"0.00%"}}]
[null,"การวิจัยและการพัฒนา","ค่าใช้จ่ายอื่นๆ (โปรดระบุ)",{"$nulls":3},{"$f":"IFERROR(IF(Sales_Revenue=0,\"-\",ค่าใช้จ่ายในการดำเนินการ[[#This Row],[รอบระยะเวลาปัจจุบัน]]/Sales_Revenue),\"-\")","v":"-"},{"$f":"IFERROR(IF(ค่าใช้จ่ายในการดำเนินการ[[#This Row],[รอบระยะเวลาก่อนหน้า]]=ค่าใช้จ่ายในการดำเนินการ[[#This Row],[รอบระยะเวลาปัจจุบัน]],0,IF(ค่าใช้จ่ายในการดำเนินการ[[#This Row],[รอบระยะเวลาปัจจุบัน]]>ค่าใช้จ่ายในการดำเนินการ[[#This Row],[รอบระยะเวลาก่อนหน้า]],ABS((ค่าใช้จ่ายในการดำเนินการ[[#This Row],[รอบระยะเวลาปัจจุบัน]]/ค่าใช้จ่ายในการดำเนินการ[[#This Row],[รอบระยะเวลาก่อนหน้า]])-1),IF(AND(ค่าใช้จ่ายในการดำเนินการ[[#This Row],[รอบระยะเวลาปัจจุบัน]]<ค่าใช้จ่ายในการดำเนินการ[[#This Row],[รอบระยะเวลาก่อนหน้า]],ค่าใช้จ่ายในการดำเนินการ[[#This Row],[รอบระยะเวลาก่อนหน้า]]<0),-((ค่าใช้จ่ายในการดำเนินการ[[#This Row],[รอบระยะเวลาปัจจุบัน]]/ค่าใช้จ่ายในการดำเนินการ[[#This Row],[รอบระยะเวลาก่อนหน้า]])-1),(ค่าใช้จ่ายในการดำเนินการ[[#This Row],[รอบระยะเวลาปัจจุบัน]]/ค่าใช้จ่ายในการดำเนินการ[[#This Row],[รอบระยะเวลาก่อนหน้า]])-1))),\"-\")","v":{"v":0,"d":"0.00%"}},{"$f":"IFERROR(IF(ค่าใช้จ่ายในการดำเนินการ[[#This Row],[งบประมาณ]]=ค่าใช้จ่ายในการดำเนินการ[[#This Row],[รอบระยะเวลาปัจจุบัน]],0,IF(ค่าใช้จ่ายในการดำเนินการ[[#This Row],[รอบระยะเวลาปัจจุบัน]]>ค่าใช้จ่ายในการดำเนินการ[[#This Row],[งบประมาณ]],ABS((ค่าใช้จ่ายในการดำเนินการ[[#This Row],[รอบระยะเวลาปัจจุบัน]]/ค่าใช้จ่ายในการดำเนินการ[[#This Row],[งบประมาณ]])-1),IF(AND(ค่าใช้จ่ายในการดำเนินการ[[#This Row],[รอบระยะเวลาปัจจุบัน]]<ค่าใช้จ่ายในการดำเนินการ[[#This Row],[งบประมาณ]],ค่าใช้จ่ายในการดำเนินการ[[#This Row],[งบประมาณ]]<0),-((ค่าใช้จ่ายในการดำเนินการ[[#This Row],[รอบระยะเวลาปัจจุบัน]]/ค่าใช้จ่ายในการดำเนินการ[[#This Row],[งบประมาณ]])-1),(ค่าใช้จ่ายในการดำเนินการ[[#This Row],[รอบระยะเวลาปัจจุบัน]]/ค่าใช้จ่ายในการดำเนินการ[[#This Row],[งบประมาณ]])-1))),\"-\")","v":{"v":0,"d":"0.00%"}}]
[null,"การวิจัยและการพัฒนา","ค่าใช้จ่ายอื่นๆ (โปรดระบุ)",{"$nulls":3},{"$f":"IFERROR(IF(Sales_Revenue=0,\"-\",ค่าใช้จ่ายในการดำเนินการ[[#This Row],[รอบระยะเวลาปัจจุบัน]]/Sales_Revenue),\"-\")","v":"-"},{"$f":"IFERROR(IF(ค่าใช้จ่ายในการดำเนินการ[[#This Row],[รอบระยะเวลาก่อนหน้า]]=ค่าใช้จ่ายในการดำเนินการ[[#This Row],[รอบระยะเวลาปัจจุบัน]],0,IF(ค่าใช้จ่ายในการดำเนินการ[[#This Row],[รอบระยะเวลาปัจจุบัน]]>ค่าใช้จ่ายในการดำเนินการ[[#This Row],[รอบระยะเวลาก่อนหน้า]],ABS((ค่าใช้จ่ายในการดำเนินการ[[#This Row],[รอบระยะเวลาปัจจุบัน]]/ค่าใช้จ่ายในการดำเนินการ[[#This Row],[รอบระยะเวลาก่อนหน้า]])-1),IF(AND(ค่าใช้จ่ายในการดำเนินการ[[#This Row],[รอบระยะเวลาปัจจุบัน]]<ค่าใช้จ่ายในการดำเนินการ[[#This Row],[รอบระยะเวลาก่อนหน้า]],ค่าใช้จ่ายในการดำเนินการ[[#This Row],[รอบระยะเวลาก่อนหน้า]]<0),-((ค่าใช้จ่ายในการดำเนินการ[[#This Row],[รอบระยะเวลาปัจจุบัน]]/ค่าใช้จ่ายในการดำเนินการ[[#This Row],[รอบระยะเวลาก่อนหน้า]])-1),(ค่าใช้จ่ายในการดำเนินการ[[#This Row],[รอบระยะเวลาปัจจุบัน]]/ค่าใช้จ่ายในการดำเนินการ[[#This Row],[รอบระยะเวลาก่อนหน้า]])-1))),\"-\")","v":{"v":0,"d":"0.00%"}},{"$f":"IFERROR(IF(ค่าใช้จ่ายในการดำเนินการ[[#This Row],[งบประมาณ]]=ค่าใช้จ่ายในการดำเนินการ[[#This Row],[รอบระยะเวลาปัจจุบัน]],0,IF(ค่าใช้จ่ายในการดำเนินการ[[#This Row],[รอบระยะเวลาปัจจุบัน]]>ค่าใช้จ่ายในการดำเนินการ[[#This Row],[งบประมาณ]],ABS((ค่าใช้จ่ายในการดำเนินการ[[#This Row],[รอบระยะเวลาปัจจุบัน]]/ค่าใช้จ่ายในการดำเนินการ[[#This Row],[งบประมาณ]])-1),IF(AND(ค่าใช้จ่ายในการดำเนินการ[[#This Row],[รอบระยะเวลาปัจจุบัน]]<ค่าใช้จ่ายในการดำเนินการ[[#This Row],[งบประมาณ]],ค่าใช้จ่ายในการดำเนินการ[[#This Row],[งบประมาณ]]<0),-((ค่าใช้จ่ายในการดำเนินการ[[#This Row],[รอบระยะเวลาปัจจุบัน]]/ค่าใช้จ่ายในการดำเนินการ[[#This Row],[งบประมาณ]])-1),(ค่าใช้จ่ายในการดำเนินการ[[#This Row],[รอบระยะเวลาปัจจุบัน]]/ค่าใช้จ่ายในการดำเนินการ[[#This Row],[งบประมาณ]])-1))),\"-\")","v":{"v":0,"d":"0.00%"}}]
[null,"ทั่วไปและการดูแล","ค่าจ้างและเงินเดือน",{"$nulls":3},{"$f":"IFERROR(IF(Sales_Revenue=0,\"-\",ค่าใช้จ่ายในการดำเนินการ[[#This Row],[รอบระยะเวลาปัจจุบัน]]/Sales_Revenue),\"-\")","v":"-"},{"$f":"IFERROR(IF(ค่าใช้จ่ายในการดำเนินการ[[#This Row],[รอบระยะเวลาก่อนหน้า]]=ค่าใช้จ่ายในการดำเนินการ[[#This Row],[รอบระยะเวลาปัจจุบัน]],0,IF(ค่าใช้จ่ายในการดำเนินการ[[#This Row],[รอบระยะเวลาปัจจุบัน]]>ค่าใช้จ่ายในการดำเนินการ[[#This Row],[รอบระยะเวลาก่อนหน้า]],ABS((ค่าใช้จ่ายในการดำเนินการ[[#This Row],[รอบระยะเวลาปัจจุบัน]]/ค่าใช้จ่ายในการดำเนินการ[[#This Row],[รอบระยะเวลาก่อนหน้า]])-1),IF(AND(ค่าใช้จ่ายในการดำเนินการ[[#This Row],[รอบระยะเวลาปัจจุบัน]]<ค่าใช้จ่ายในการดำเนินการ[[#This Row],[รอบระยะเวลาก่อนหน้า]],ค่าใช้จ่ายในการดำเนินการ[[#This Row],[รอบระยะเวลาก่อนหน้า]]<0),-((ค่าใช้จ่ายในการดำเนินการ[[#This Row],[รอบระยะเวลาปัจจุบัน]]/ค่าใช้จ่ายในการดำเนินการ[[#This Row],[รอบระยะเวลาก่อนหน้า]])-1),(ค่าใช้จ่ายในการดำเนินการ[[#This Row],[รอบระยะเวลาปัจจุบัน]]/ค่าใช้จ่ายในการดำเนินการ[[#This Row],[รอบระยะเวลาก่อนหน้า]])-1))),\"-\")","v":{"v":0,"d":"0.00%"}},{"$f":"IFERROR(IF(ค่าใช้จ่ายในการดำเนินการ[[#This Row],[งบประมาณ]]=ค่าใช้จ่ายในการดำเนินการ[[#This Row],[รอบระยะเวลาปัจจุบัน]],0,IF(ค่าใช้จ่ายในการดำเนินการ[[#This Row],[รอบระยะเวลาปัจจุบัน]]>ค่าใช้จ่ายในการดำเนินการ[[#This Row],[งบประมาณ]],ABS((ค่าใช้จ่ายในการดำเนินการ[[#This Row],[รอบระยะเวลาปัจจุบัน]]/ค่าใช้จ่ายในการดำเนินการ[[#This Row],[งบประมาณ]])-1),IF(AND(ค่าใช้จ่ายในการดำเนินการ[[#This Row],[รอบระยะเวลาปัจจุบัน]]<ค่าใช้จ่ายในการดำเนินการ[[#This Row],[งบประมาณ]],ค่าใช้จ่ายในการดำเนินการ[[#This Row],[งบประมาณ]]<0),-((ค่าใช้จ่ายในการดำเนินการ[[#This Row],[รอบระยะเวลาปัจจุบัน]]/ค่าใช้จ่ายในการดำเนินการ[[#This Row],[งบประมาณ]])-1),(ค่าใช้จ่ายในการดำเนินการ[[#This Row],[รอบระยะเวลาปัจจุบัน]]/ค่าใช้จ่ายในการดำเนินการ[[#This Row],[งบประมาณ]])-1))),\"-\")","v":{"v":0,"d":"0.00%"}}]
[null,"ทั่วไปและการดูแล","บริการภายนอก",{"$nulls":3},{"$f":"IFERROR(IF(Sales_Revenue=0,\"-\",ค่าใช้จ่ายในการดำเนินการ[[#This Row],[รอบระยะเวลาปัจจุบัน]]/Sales_Revenue),\"-\")","v":"-"},{"$f":"IFERROR(IF(ค่าใช้จ่ายในการดำเนินการ[[#This Row],[รอบระยะเวลาก่อนหน้า]]=ค่าใช้จ่ายในการดำเนินการ[[#This Row],[รอบระยะเวลาปัจจุบัน]],0,IF(ค่าใช้จ่ายในการดำเนินการ[[#This Row],[รอบระยะเวลาปัจจุบัน]]>ค่าใช้จ่ายในการดำเนินการ[[#This Row],[รอบระยะเวลาก่อนหน้า]],ABS((ค่าใช้จ่ายในการดำเนินการ[[#This Row],[รอบระยะเวลาปัจจุบัน]]/ค่าใช้จ่ายในการดำเนินการ[[#This Row],[รอบระยะเวลาก่อนหน้า]])-1),IF(AND(ค่าใช้จ่ายในการดำเนินการ[[#This Row],[รอบระยะเวลาปัจจุบัน]]<ค่าใช้จ่ายในการดำเนินการ[[#This Row],[รอบระยะเวลาก่อนหน้า]],ค่าใช้จ่ายในการดำเนินการ[[#This Row],[รอบระยะเวลาก่อนหน้า]]<0),-((ค่าใช้จ่ายในการดำเนินการ[[#This Row],[รอบระยะเวลาปัจจุบัน]]/ค่าใช้จ่ายในการดำเนินการ[[#This Row],[รอบระยะเวลาก่อนหน้า]])-1),(ค่าใช้จ่ายในการดำเนินการ[[#This Row],[รอบระยะเวลาปัจจุบัน]]/ค่าใช้จ่ายในการดำเนินการ[[#This Row],[รอบระยะเวลาก่อนหน้า]])-1))),\"-\")","v":{"v":0,"d":"0.00%"}},{"$f":"IFERROR(IF(ค่าใช้จ่ายในการดำเนินการ[[#This Row],[งบประมาณ]]=ค่าใช้จ่ายในการดำเนินการ[[#This Row],[รอบระยะเวลาปัจจุบัน]],0,IF(ค่าใช้จ่ายในการดำเนินการ[[#This Row],[รอบระยะเวลาปัจจุบัน]]>ค่าใช้จ่ายในการดำเนินการ[[#This Row],[งบประมาณ]],ABS((ค่าใช้จ่ายในการดำเนินการ[[#This Row],[รอบระยะเวลาปัจจุบัน]]/ค่าใช้จ่ายในการดำเนินการ[[#This Row],[งบประมาณ]])-1),IF(AND(ค่าใช้จ่ายในการดำเนินการ[[#This Row],[รอบระยะเวลาปัจจุบัน]]<ค่าใช้จ่ายในการดำเนินการ[[#This Row],[งบประมาณ]],ค่าใช้จ่ายในการดำเนินการ[[#This Row],[งบประมาณ]]<0),-((ค่าใช้จ่ายในการดำเนินการ[[#This Row],[รอบระยะเวลาปัจจุบัน]]/ค่าใช้จ่ายในการดำเนินการ[[#This Row],[งบประมาณ]])-1),(ค่าใช้จ่ายในการดำเนินการ[[#This Row],[รอบระยะเวลาปัจจุบัน]]/ค่าใช้จ่ายในการดำเนินการ[[#This Row],[งบประมาณ]])-1))),\"-\")","v":{"v":0,"d":"0.00%"}}]
[null,"ทั่วไปและการดูแล","อุปกรณ์ต่างๆ",{"$nulls":3},{"$f":"IFERROR(IF(Sales_Revenue=0,\"-\",ค่าใช้จ่ายในการดำเนินการ[[#This Row],[รอบระยะเวลาปัจจุบัน]]/Sales_Revenue),\"-\")","v":"-"},{"$f":"IFERROR(IF(ค่าใช้จ่ายในการดำเนินการ[[#This Row],[รอบระยะเวลาก่อนหน้า]]=ค่าใช้จ่ายในการดำเนินการ[[#This Row],[รอบระยะเวลาปัจจุบัน]],0,IF(ค่าใช้จ่ายในการดำเนินการ[[#This Row],[รอบระยะเวลาปัจจุบัน]]>ค่าใช้จ่ายในการดำเนินการ[[#This Row],[รอบระยะเวลาก่อนหน้า]],ABS((ค่าใช้จ่ายในการดำเนินการ[[#This Row],[รอบระยะเวลาปัจจุบัน]]/ค่าใช้จ่ายในการดำเนินการ[[#This Row],[รอบระยะเวลาก่อนหน้า]])-1),IF(AND(ค่าใช้จ่ายในการดำเนินการ[[#This Row],[รอบระยะเวลาปัจจุบัน]]<ค่าใช้จ่ายในการดำเนินการ[[#This Row],[รอบระยะเวลาก่อนหน้า]],ค่าใช้จ่ายในการดำเนินการ[[#This Row],[รอบระยะเวลาก่อนหน้า]]<0),-((ค่าใช้จ่ายในการดำเนินการ[[#This Row],[รอบระยะเวลาปัจจุบัน]]/ค่าใช้จ่ายในการดำเนินการ[[#This Row],[รอบระยะเวลาก่อนหน้า]])-1),(ค่าใช้จ่ายในการดำเนินการ[[#This Row],[รอบระยะเวลาปัจจุบัน]]/ค่าใช้จ่ายในการดำเนินการ[[#This Row],[รอบระยะเวลาก่อนหน้า]])-1))),\"-\")","v":{"v":0,"d":"0.00%"}},{"$f":"IFERROR(IF(ค่าใช้จ่ายในการดำเนินการ[[#This Row],[งบประมาณ]]=ค่าใช้จ่ายในการดำเนินการ[[#This Row],[รอบระยะเวลาปัจจุบัน]],0,IF(ค่าใช้จ่ายในการดำเนินการ[[#This Row],[รอบระยะเวลาปัจจุบัน]]>ค่าใช้จ่ายในการดำเนินการ[[#This Row],[งบประมาณ]],ABS((ค่าใช้จ่ายในการดำเนินการ[[#This Row],[รอบระยะเวลาปัจจุบัน]]/ค่าใช้จ่ายในการดำเนินการ[[#This Row],[งบประมาณ]])-1),IF(AND(ค่าใช้จ่ายในการดำเนินการ[[#This Row],[รอบระยะเวลาปัจจุบัน]]<ค่าใช้จ่ายในการดำเนินการ[[#This Row],[งบประมาณ]],ค่าใช้จ่ายในการดำเนินการ[[#This Row],[งบประมาณ]]<0),-((ค่าใช้จ่ายในการดำเนินการ[[#This Row],[รอบระยะเวลาปัจจุบัน]]/ค่าใช้จ่ายในการดำเนินการ[[#This Row],[งบประมาณ]])-1),(ค่าใช้จ่ายในการดำเนินการ[[#This Row],[รอบระยะเวลาปัจจุบัน]]/ค่าใช้จ่ายในการดำเนินการ[[#This Row],[งบประมาณ]])-1))),\"-\")","v":{"v":0,"d":"0.00%"}}]
[null,"ทั่วไปและการดูแล","อาหารและความบันเทิง",{"$nulls":3},{"$f":"IFERROR(IF(Sales_Revenue=0,\"-\",ค่าใช้จ่ายในการดำเนินการ[[#This Row],[รอบระยะเวลาปัจจุบัน]]/Sales_Revenue),\"-\")","v":"-"},{"$f":"IFERROR(IF(ค่าใช้จ่ายในการดำเนินการ[[#This Row],[รอบระยะเวลาก่อนหน้า]]=ค่าใช้จ่ายในการดำเนินการ[[#This Row],[รอบระยะเวลาปัจจุบัน]],0,IF(ค่าใช้จ่ายในการดำเนินการ[[#This Row],[รอบระยะเวลาปัจจุบัน]]>ค่าใช้จ่ายในการดำเนินการ[[#This Row],[รอบระยะเวลาก่อนหน้า]],ABS((ค่าใช้จ่ายในการดำเนินการ[[#This Row],[รอบระยะเวลาปัจจุบัน]]/ค่าใช้จ่ายในการดำเนินการ[[#This Row],[รอบระยะเวลาก่อนหน้า]])-1),IF(AND(ค่าใช้จ่ายในการดำเนินการ[[#This Row],[รอบระยะเวลาปัจจุบัน]]<ค่าใช้จ่ายในการดำเนินการ[[#This Row],[รอบระยะเวลาก่อนหน้า]],ค่าใช้จ่ายในการดำเนินการ[[#This Row],[รอบระยะเวลาก่อนหน้า]]<0),-((ค่าใช้จ่ายในการดำเนินการ[[#This Row],[รอบระยะเวลาปัจจุบัน]]/ค่าใช้จ่ายในการดำเนินการ[[#This Row],[รอบระยะเวลาก่อนหน้า]])-1),(ค่าใช้จ่ายในการดำเนินการ[[#This Row],[รอบระยะเวลาปัจจุบัน]]/ค่าใช้จ่ายในการดำเนินการ[[#This Row],[รอบระยะเวลาก่อนหน้า]])-1))),\"-\")","v":{"v":0,"d":"0.00%"}},{"$f":"IFERROR(IF(ค่าใช้จ่ายในการดำเนินการ[[#This Row],[งบประมาณ]]=ค่าใช้จ่ายในการดำเนินการ[[#This Row],[รอบระยะเวลาปัจจุบัน]],0,IF(ค่าใช้จ่ายในการดำเนินการ[[#This Row],[รอบระยะเวลาปัจจุบัน]]>ค่าใช้จ่ายในการดำเนินการ[[#This Row],[งบประมาณ]],ABS((ค่าใช้จ่ายในการดำเนินการ[[#This Row],[รอบระยะเวลาปัจจุบัน]]/ค่าใช้จ่ายในการดำเนินการ[[#This Row],[งบประมาณ]])-1),IF(AND(ค่าใช้จ่ายในการดำเนินการ[[#This Row],[รอบระยะเวลาปัจจุบัน]]<ค่าใช้จ่ายในการดำเนินการ[[#This Row],[งบประมาณ]],ค่าใช้จ่ายในการดำเนินการ[[#This Row],[งบประมาณ]]<0),-((ค่าใช้จ่ายในการดำเนินการ[[#This Row],[รอบระยะเวลาปัจจุบัน]]/ค่าใช้จ่ายในการดำเนินการ[[#This Row],[งบประมาณ]])-1),(ค่าใช้จ่ายในการดำเนินการ[[#This Row],[รอบระยะเวลาปัจจุบัน]]/ค่าใช้จ่ายในการดำเนินการ[[#This Row],[งบประมาณ]])-1))),\"-\")","v":{"v":0,"d":"0.00%"}}]
[null,"ทั่วไปและการดูแล","ค่าเช่า",{"$nulls":3},{"$f":"IFERROR(IF(Sales_Revenue=0,\"-\",ค่าใช้จ่ายในการดำเนินการ[[#This Row],[รอบระยะเวลาปัจจุบัน]]/Sales_Revenue),\"-\")","v":"-"},{"$f":"IFERROR(IF(ค่าใช้จ่ายในการดำเนินการ[[#This Row],[รอบระยะเวลาก่อนหน้า]]=ค่าใช้จ่ายในการดำเนินการ[[#This Row],[รอบระยะเวลาปัจจุบัน]],0,IF(ค่าใช้จ่ายในการดำเนินการ[[#This Row],[รอบระยะเวลาปัจจุบัน]]>ค่าใช้จ่ายในการดำเนินการ[[#This Row],[รอบระยะเวลาก่อนหน้า]],ABS((ค่าใช้จ่ายในการดำเนินการ[[#This Row],[รอบระยะเวลาปัจจุบัน]]/ค่าใช้จ่ายในการดำเนินการ[[#This Row],[รอบระยะเวลาก่อนหน้า]])-1),IF(AND(ค่าใช้จ่ายในการดำเนินการ[[#This Row],[รอบระยะเวลาปัจจุบัน]]<ค่าใช้จ่ายในการดำเนินการ[[#This Row],[รอบระยะเวลาก่อนหน้า]],ค่าใช้จ่ายในการดำเนินการ[[#This Row],[รอบระยะเวลาก่อนหน้า]]<0),-((ค่าใช้จ่ายในการดำเนินการ[[#This Row],[รอบระยะเวลาปัจจุบัน]]/ค่าใช้จ่ายในการดำเนินการ[[#This Row],[รอบระยะเวลาก่อนหน้า]])-1),(ค่าใช้จ่ายในการดำเนินการ[[#This Row],[รอบระยะเวลาปัจจุบัน]]/ค่าใช้จ่ายในการดำเนินการ[[#This Row],[รอบระยะเวลาก่อนหน้า]])-1))),\"-\")","v":{"v":0,"d":"0.00%"}},{"$f":"IFERROR(IF(ค่าใช้จ่ายในการดำเนินการ[[#This Row],[งบประมาณ]]=ค่าใช้จ่ายในการดำเนินการ[[#This Row],[รอบระยะเวลาปัจจุบัน]],0,IF(ค่าใช้จ่ายในการดำเนินการ[[#This Row],[รอบระยะเวลาปัจจุบัน]]>ค่าใช้จ่ายในการดำเนินการ[[#This Row],[งบประมาณ]],ABS((ค่าใช้จ่ายในการดำเนินการ[[#This Row],[รอบระยะเวลาปัจจุบัน]]/ค่าใช้จ่ายในการดำเนินการ[[#This Row],[งบประมาณ]])-1),IF(AND(ค่าใช้จ่ายในการดำเนินการ[[#This Row],[รอบระยะเวลาปัจจุบัน]]<ค่าใช้จ่ายในการดำเนินการ[[#This Row],[งบประมาณ]],ค่าใช้จ่ายในการดำเนินการ[[#This Row],[งบประมาณ]]<0),-((ค่าใช้จ่ายในการดำเนินการ[[#This Row],[รอบระยะเวลาปัจจุบัน]]/ค่าใช้จ่ายในการดำเนินการ[[#This Row],[งบประมาณ]])-1),(ค่าใช้จ่ายในการดำเนินการ[[#This Row],[รอบระยะเวลาปัจจุบัน]]/ค่าใช้จ่ายในการดำเนินการ[[#This Row],[งบประมาณ]])-1))),\"-\")","v":{"v":0,"d":"0.00%"}}]
[null,"ทั่วไปและการดูแล","โทรศัพท์",{"$nulls":3},{"$f":"IFERROR(IF(Sales_Revenue=0,\"-\",ค่าใช้จ่ายในการดำเนินการ[[#This Row],[รอบระยะเวลาปัจจุบัน]]/Sales_Revenue),\"-\")","v":"-"},{"$f":"IFERROR(IF(ค่าใช้จ่ายในการดำเนินการ[[#This Row],[รอบระยะเวลาก่อนหน้า]]=ค่าใช้จ่ายในการดำเนินการ[[#This Row],[รอบระยะเวลาปัจจุบัน]],0,IF(ค่าใช้จ่ายในการดำเนินการ[[#This Row],[รอบระยะเวลาปัจจุบัน]]>ค่าใช้จ่ายในการดำเนินการ[[#This Row],[รอบระยะเวลาก่อนหน้า]],ABS((ค่าใช้จ่ายในการดำเนินการ[[#This Row],[รอบระยะเวลาปัจจุบัน]]/ค่าใช้จ่ายในการดำเนินการ[[#This Row],[รอบระยะเวลาก่อนหน้า]])-1),IF(AND(ค่าใช้จ่ายในการดำเนินการ[[#This Row],[รอบระยะเวลาปัจจุบัน]]<ค่าใช้จ่ายในการดำเนินการ[[#This Row],[รอบระยะเวลาก่อนหน้า]],ค่าใช้จ่ายในการดำเนินการ[[#This Row],[รอบระยะเวลาก่อนหน้า]]<0),-((ค่าใช้จ่ายในการดำเนินการ[[#This Row],[รอบระยะเวลาปัจจุบัน]]/ค่าใช้จ่ายในการดำเนินการ[[#This Row],[รอบระยะเวลาก่อนหน้า]])-1),(ค่าใช้จ่ายในการดำเนินการ[[#This Row],[รอบระยะเวลาปัจจุบัน]]/ค่าใช้จ่ายในการดำเนินการ[[#This Row],[รอบระยะเวลาก่อนหน้า]])-1))),\"-\")","v":{"v":0,"d":"0.00%"}},{"$f":"IFERROR(IF(ค่าใช้จ่ายในการดำเนินการ[[#This Row],[งบประมาณ]]=ค่าใช้จ่ายในการดำเนินการ[[#This Row],[รอบระยะเวลาปัจจุบัน]],0,IF(ค่าใช้จ่ายในการดำเนินการ[[#This Row],[รอบระยะเวลาปัจจุบัน]]>ค่าใช้จ่ายในการดำเนินการ[[#This Row],[งบประมาณ]],ABS((ค่าใช้จ่ายในการดำเนินการ[[#This Row],[รอบระยะเวลาปัจจุบัน]]/ค่าใช้จ่ายในการดำเนินการ[[#This Row],[งบประมาณ]])-1),IF(AND(ค่าใช้จ่ายในการดำเนินการ[[#This Row],[รอบระยะเวลาปัจจุบัน]]<ค่าใช้จ่ายในการดำเนินการ[[#This Row],[งบประมาณ]],ค่าใช้จ่ายในการดำเนินการ[[#This Row],[งบประมาณ]]<0),-((ค่าใช้จ่ายในการดำเนินการ[[#This Row],[รอบระยะเวลาปัจจุบัน]]/ค่าใช้จ่ายในการดำเนินการ[[#This Row],[งบประมาณ]])-1),(ค่าใช้จ่ายในการดำเนินการ[[#This Row],[รอบระยะเวลาปัจจุบัน]]/ค่าใช้จ่ายในการดำเนินการ[[#This Row],[งบประมาณ]])-1))),\"-\")","v":{"v":0,"d":"0.00%"}}]
[null,"ทั่วไปและการดูแล","สาธารณูปโภค",{"$nulls":3},{"$f":"IFERROR(IF(Sales_Revenue=0,\"-\",ค่าใช้จ่ายในการดำเนินการ[[#This Row],[รอบระยะเวลาปัจจุบัน]]/Sales_Revenue),\"-\")","v":"-"},{"$f":"IFERROR(IF(ค่าใช้จ่ายในการดำเนินการ[[#This Row],[รอบระยะเวลาก่อนหน้า]]=ค่าใช้จ่ายในการดำเนินการ[[#This Row],[รอบระยะเวลาปัจจุบัน]],0,IF(ค่าใช้จ่ายในการดำเนินการ[[#This Row],[รอบระยะเวลาปัจจุบัน]]>ค่าใช้จ่ายในการดำเนินการ[[#This Row],[รอบระยะเวลาก่อนหน้า]],ABS((ค่าใช้จ่ายในการดำเนินการ[[#This Row],[รอบระยะเวลาปัจจุบัน]]/ค่าใช้จ่ายในการดำเนินการ[[#This Row],[รอบระยะเวลาก่อนหน้า]])-1),IF(AND(ค่าใช้จ่ายในการดำเนินการ[[#This Row],[รอบระยะเวลาปัจจุบัน]]<ค่าใช้จ่ายในการดำเนินการ[[#This Row],[รอบระยะเวลาก่อนหน้า]],ค่าใช้จ่ายในการดำเนินการ[[#This Row],[รอบระยะเวลาก่อนหน้า]]<0),-((ค่าใช้จ่ายในการดำเนินการ[[#This Row],[รอบระยะเวลาปัจจุบัน]]/ค่าใช้จ่ายในการดำเนินการ[[#This Row],[รอบระยะเวลาก่อนหน้า]])-1),(ค่าใช้จ่ายในการดำเนินการ[[#This Row],[รอบระยะเวลาปัจจุบัน]]/ค่าใช้จ่ายในการดำเนินการ[[#This Row],[รอบระยะเวลาก่อนหน้า]])-1))),\"-\")","v":{"v":0,"d":"0.00%"}},{"$f":"IFERROR(IF(ค่าใช้จ่ายในการดำเนินการ[[#This Row],[งบประมาณ]]=ค่าใช้จ่ายในการดำเนินการ[[#This Row],[รอบระยะเวลาปัจจุบัน]],0,IF(ค่าใช้จ่ายในการดำเนินการ[[#This Row],[รอบระยะเวลาปัจจุบัน]]>ค่าใช้จ่ายในการดำเนินการ[[#This Row],[งบประมาณ]],ABS((ค่าใช้จ่ายในการดำเนินการ[[#This Row],[รอบระยะเวลาปัจจุบัน]]/ค่าใช้จ่ายในการดำเนินการ[[#This Row],[งบประมาณ]])-1),IF(AND(ค่าใช้จ่ายในการดำเนินการ[[#This Row],[รอบระยะเวลาปัจจุบัน]]<ค่าใช้จ่ายในการดำเนินการ[[#This Row],[งบประมาณ]],ค่าใช้จ่ายในการดำเนินการ[[#This Row],[งบประมาณ]]<0),-((ค่าใช้จ่ายในการดำเนินการ[[#This Row],[รอบระยะเวลาปัจจุบัน]]/ค่าใช้จ่ายในการดำเนินการ[[#This Row],[งบประมาณ]])-1),(ค่าใช้จ่ายในการดำเนินการ[[#This Row],[รอบระยะเวลาปัจจุบัน]]/ค่าใช้จ่ายในการดำเนินการ[[#This Row],[งบประมาณ]])-1))),\"-\")","v":{"v":0,"d":"0.00%"}}]
[null,"ทั่วไปและการดูแล","ค่าเสื่อมราคา",{"$nulls":3},{"$f":"IFERROR(IF(Sales_Revenue=0,\"-\",ค่าใช้จ่ายในการดำเนินการ[[#This Row],[รอบระยะเวลาปัจจุบัน]]/Sales_Revenue),\"-\")","v":"-"},{"$f":"IFERROR(IF(ค่าใช้จ่ายในการดำเนินการ[[#This Row],[รอบระยะเวลาก่อนหน้า]]=ค่าใช้จ่ายในการดำเนินการ[[#This Row],[รอบระยะเวลาปัจจุบัน]],0,IF(ค่าใช้จ่ายในการดำเนินการ[[#This Row],[รอบระยะเวลาปัจจุบัน]]>ค่าใช้จ่ายในการดำเนินการ[[#This Row],[รอบระยะเวลาก่อนหน้า]],ABS((ค่าใช้จ่ายในการดำเนินการ[[#This Row],[รอบระยะเวลาปัจจุบัน]]/ค่าใช้จ่ายในการดำเนินการ[[#This Row],[รอบระยะเวลาก่อนหน้า]])-1),IF(AND(ค่าใช้จ่ายในการดำเนินการ[[#This Row],[รอบระยะเวลาปัจจุบัน]]<ค่าใช้จ่ายในการดำเนินการ[[#This Row],[รอบระยะเวลาก่อนหน้า]],ค่าใช้จ่ายในการดำเนินการ[[#This Row],[รอบระยะเวลาก่อนหน้า]]<0),-((ค่าใช้จ่ายในการดำเนินการ[[#This Row],[รอบระยะเวลาปัจจุบัน]]/ค่าใช้จ่ายในการดำเนินการ[[#This Row],[รอบระยะเวลาก่อนหน้า]])-1),(ค่าใช้จ่ายในการดำเนินการ[[#This Row],[รอบระยะเวลาปัจจุบัน]]/ค่าใช้จ่ายในการดำเนินการ[[#This Row],[รอบระยะเวลาก่อนหน้า]])-1))),\"-\")","v":{"v":0,"d":"0.00%"}},{"$f":"IFERROR(IF(ค่าใช้จ่ายในการดำเนินการ[[#This Row],[งบประมาณ]]=ค่าใช้จ่ายในการดำเนินการ[[#This Row],[รอบระยะเวลาปัจจุบัน]],0,IF(ค่าใช้จ่ายในการดำเนินการ[[#This Row],[รอบระยะเวลาปัจจุบัน]]>ค่าใช้จ่ายในการดำเนินการ[[#This Row],[งบประมาณ]],ABS((ค่าใช้จ่ายในการดำเนินการ[[#This Row],[รอบระยะเวลาปัจจุบัน]]/ค่าใช้จ่ายในการดำเนินการ[[#This Row],[งบประมาณ]])-1),IF(AND(ค่าใช้จ่ายในการดำเนินการ[[#This Row],[รอบระยะเวลาปัจจุบัน]]<ค่าใช้จ่ายในการดำเนินการ[[#This Row],[งบประมาณ]],ค่าใช้จ่ายในการดำเนินการ[[#This Row],[งบประมาณ]]<0),-((ค่าใช้จ่ายในการดำเนินการ[[#This Row],[รอบระยะเวลาปัจจุบัน]]/ค่าใช้จ่ายในการดำเนินการ[[#This Row],[งบประมาณ]])-1),(ค่าใช้จ่ายในการดำเนินการ[[#This Row],[รอบระยะเวลาปัจจุบัน]]/ค่าใช้จ่ายในการดำเนินการ[[#This Row],[งบประมาณ]])-1))),\"-\")","v":{"v":0,"d":"0.00%"}}]
[null,"ทั่วไปและการดูแล","ค่าประกัน",{"$nulls":3},{"$f":"IFERROR(IF(Sales_Revenue=0,\"-\",ค่าใช้จ่ายในการดำเนินการ[[#This Row],[รอบระยะเวลาปัจจุบัน]]/Sales_Revenue),\"-\")","v":"-"},{"$f":"IFERROR(IF(ค่าใช้จ่ายในการดำเนินการ[[#This Row],[รอบระยะเวลาก่อนหน้า]]=ค่าใช้จ่ายในการดำเนินการ[[#This Row],[รอบระยะเวลาปัจจุบัน]],0,IF(ค่าใช้จ่ายในการดำเนินการ[[#This Row],[รอบระยะเวลาปัจจุบัน]]>ค่าใช้จ่ายในการดำเนินการ[[#This Row],[รอบระยะเวลาก่อนหน้า]],ABS((ค่าใช้จ่ายในการดำเนินการ[[#This Row],[รอบระยะเวลาปัจจุบัน]]/ค่าใช้จ่ายในการดำเนินการ[[#This Row],[รอบระยะเวลาก่อนหน้า]])-1),IF(AND(ค่าใช้จ่ายในการดำเนินการ[[#This Row],[รอบระยะเวลาปัจจุบัน]]<ค่าใช้จ่ายในการดำเนินการ[[#This Row],[รอบระยะเวลาก่อนหน้า]],ค่าใช้จ่ายในการดำเนินการ[[#This Row],[รอบระยะเวลาก่อนหน้า]]<0),-((ค่าใช้จ่ายในการดำเนินการ[[#This Row],[รอบระยะเวลาปัจจุบัน]]/ค่าใช้จ่ายในการดำเนินการ[[#This Row],[รอบระยะเวลาก่อนหน้า]])-1),(ค่าใช้จ่ายในการดำเนินการ[[#This Row],[รอบระยะเวลาปัจจุบัน]]/ค่าใช้จ่ายในการดำเนินการ[[#This Row],[รอบระยะเวลาก่อนหน้า]])-1))),\"-\")","v":{"v":0,"d":"0.00%"}},{"$f":"IFERROR(IF(ค่าใช้จ่ายในการดำเนินการ[[#This Row],[งบประมาณ]]=ค่าใช้จ่ายในการดำเนินการ[[#This Row],[รอบระยะเวลาปัจจุบัน]],0,IF(ค่าใช้จ่ายในการดำเนินการ[[#This Row],[รอบระยะเวลาปัจจุบัน]]>ค่าใช้จ่ายในการดำเนินการ[[#This Row],[งบประมาณ]],ABS((ค่าใช้จ่ายในการดำเนินการ[[#This Row],[รอบระยะเวลาปัจจุบัน]]/ค่าใช้จ่ายในการดำเนินการ[[#This Row],[งบประมาณ]])-1),IF(AND(ค่าใช้จ่ายในการดำเนินการ[[#This Row],[รอบระยะเวลาปัจจุบัน]]<ค่าใช้จ่ายในการดำเนินการ[[#This Row],[งบประมาณ]],ค่าใช้จ่ายในการดำเนินการ[[#This Row],[งบประมาณ]]<0),-((ค่าใช้จ่ายในการดำเนินการ[[#This Row],[รอบระยะเวลาปัจจุบัน]]/ค่าใช้จ่ายในการดำเนินการ[[#This Row],[งบประมาณ]])-1),(ค่าใช้จ่ายในการดำเนินการ[[#This Row],[รอบระยะเวลาปัจจุบัน]]/ค่าใช้จ่ายในการดำเนินการ[[#This Row],[งบประมาณ]])-1))),\"-\")","v":{"v":0,"d":"0.00%"}}]
[null,"ทั่วไปและการดูแล","ซ่อมแซมและซ่อมบำรุง",{"$nulls":3},{"$f":"IFERROR(IF(Sales_Revenue=0,\"-\",ค่าใช้จ่ายในการดำเนินการ[[#This Row],[รอบระยะเวลาปัจจุบัน]]/Sales_Revenue),\"-\")","v":"-"},{"$f":"IFERROR(IF(ค่าใช้จ่ายในการดำเนินการ[[#This Row],[รอบระยะเวลาก่อนหน้า]]=ค่าใช้จ่ายในการดำเนินการ[[#This Row],[รอบระยะเวลาปัจจุบัน]],0,IF(ค่าใช้จ่ายในการดำเนินการ[[#This Row],[รอบระยะเวลาปัจจุบัน]]>ค่าใช้จ่ายในการดำเนินการ[[#This Row],[รอบระยะเวลาก่อนหน้า]],ABS((ค่าใช้จ่ายในการดำเนินการ[[#This Row],[รอบระยะเวลาปัจจุบัน]]/ค่าใช้จ่ายในการดำเนินการ[[#This Row],[รอบระยะเวลาก่อนหน้า]])-1),IF(AND(ค่าใช้จ่ายในการดำเนินการ[[#This Row],[รอบระยะเวลาปัจจุบัน]]<ค่าใช้จ่ายในการดำเนินการ[[#This Row],[รอบระยะเวลาก่อนหน้า]],ค่าใช้จ่ายในการดำเนินการ[[#This Row],[รอบระยะเวลาก่อนหน้า]]<0),-((ค่าใช้จ่ายในการดำเนินการ[[#This Row],[รอบระยะเวลาปัจจุบัน]]/ค่าใช้จ่ายในการดำเนินการ[[#This Row],[รอบระยะเวลาก่อนหน้า]])-1),(ค่าใช้จ่ายในการดำเนินการ[[#This Row],[รอบระยะเวลาปัจจุบัน]]/ค่าใช้จ่ายในการดำเนินการ[[#This Row],[รอบระยะเวลาก่อนหน้า]])-1))),\"-\")","v":{"v":0,"d":"0.00%"}},{"$f":"IFERROR(IF(ค่าใช้จ่ายในการดำเนินการ[[#This Row],[งบประมาณ]]=ค่าใช้จ่ายในการดำเนินการ[[#This Row],[รอบระยะเวลาปัจจุบัน]],0,IF(ค่าใช้จ่ายในการดำเนินการ[[#This Row],[รอบระยะเวลาปัจจุบัน]]>ค่าใช้จ่ายในการดำเนินการ[[#This Row],[งบประมาณ]],ABS((ค่าใช้จ่ายในการดำเนินการ[[#This Row],[รอบระยะเวลาปัจจุบัน]]/ค่าใช้จ่ายในการดำเนินการ[[#This Row],[งบประมาณ]])-1),IF(AND(ค่าใช้จ่ายในการดำเนินการ[[#This Row],[รอบระยะเวลาปัจจุบัน]]<ค่าใช้จ่ายในการดำเนินการ[[#This Row],[งบประมาณ]],ค่าใช้จ่ายในการดำเนินการ[[#This Row],[งบประมาณ]]<0),-((ค่าใช้จ่ายในการดำเนินการ[[#This Row],[รอบระยะเวลาปัจจุบัน]]/ค่าใช้จ่ายในการดำเนินการ[[#This Row],[งบประมาณ]])-1),(ค่าใช้จ่ายในการดำเนินการ[[#This Row],[รอบระยะเวลาปัจจุบัน]]/ค่าใช้จ่ายในการดำเนินการ[[#This Row],[งบประมาณ]])-1))),\"-\")","v":{"v":0,"d":"0.00%"}}]
[null,"ทั่วไปและการดูแล","ค่าใช้จ่ายอื่นๆ (โปรดระบุ)",{"$nulls":3},{"$f":"IFERROR(IF(Sales_Revenue=0,\"-\",ค่าใช้จ่ายในการดำเนินการ[[#This Row],[รอบระยะเวลาปัจจุบัน]]/Sales_Revenue),\"-\")","v":"-"},{"$f":"IFERROR(IF(ค่าใช้จ่ายในการดำเนินการ[[#This Row],[รอบระยะเวลาก่อนหน้า]]=ค่าใช้จ่ายในการดำเนินการ[[#This Row],[รอบระยะเวลาปัจจุบัน]],0,IF(ค่าใช้จ่ายในการดำเนินการ[[#This Row],[รอบระยะเวลาปัจจุบัน]]>ค่าใช้จ่ายในการดำเนินการ[[#This Row],[รอบระยะเวลาก่อนหน้า]],ABS((ค่าใช้จ่ายในการดำเนินการ[[#This Row],[รอบระยะเวลาปัจจุบัน]]/ค่าใช้จ่ายในการดำเนินการ[[#This Row],[รอบระยะเวลาก่อนหน้า]])-1),IF(AND(ค่าใช้จ่ายในการดำเนินการ[[#This Row],[รอบระยะเวลาปัจจุบัน]]<ค่าใช้จ่ายในการดำเนินการ[[#This Row],[รอบระยะเวลาก่อนหน้า]],ค่าใช้จ่ายในการดำเนินการ[[#This Row],[รอบระยะเวลาก่อนหน้า]]<0),-((ค่าใช้จ่ายในการดำเนินการ[[#This Row],[รอบระยะเวลาปัจจุบัน]]/ค่าใช้จ่ายในการดำเนินการ[[#This Row],[รอบระยะเวลาก่อนหน้า]])-1),(ค่าใช้จ่ายในการดำเนินการ[[#This Row],[รอบระยะเวลาปัจจุบัน]]/ค่าใช้จ่ายในการดำเนินการ[[#This Row],[รอบระยะเวลาก่อนหน้า]])-1))),\"-\")","v":{"v":0,"d":"0.00%"}},{"$f":"IFERROR(IF(ค่าใช้จ่ายในการดำเนินการ[[#This Row],[งบประมาณ]]=ค่าใช้จ่ายในการดำเนินการ[[#This Row],[รอบระยะเวลาปัจจุบัน]],0,IF(ค่าใช้จ่ายในการดำเนินการ[[#This Row],[รอบระยะเวลาปัจจุบัน]]>ค่าใช้จ่ายในการดำเนินการ[[#This Row],[งบประมาณ]],ABS((ค่าใช้จ่ายในการดำเนินการ[[#This Row],[รอบระยะเวลาปัจจุบัน]]/ค่าใช้จ่ายในการดำเนินการ[[#This Row],[งบประมาณ]])-1),IF(AND(ค่าใช้จ่ายในการดำเนินการ[[#This Row],[รอบระยะเวลาปัจจุบัน]]<ค่าใช้จ่ายในการดำเนินการ[[#This Row],[งบประมาณ]],ค่าใช้จ่ายในการดำเนินการ[[#This Row],[งบประมาณ]]<0),-((ค่าใช้จ่ายในการดำเนินการ[[#This Row],[รอบระยะเวลาปัจจุบัน]]/ค่าใช้จ่ายในการดำเนินการ[[#This Row],[งบประมาณ]])-1),(ค่าใช้จ่ายในการดำเนินการ[[#This Row],[รอบระยะเวลาปัจจุบัน]]/ค่าใช้จ่ายในการดำเนินการ[[#This Row],[งบประมาณ]])-1))),\"-\")","v":{"v":0,"d":"0.00%"}}]
[null,"ทั่วไปและการดูแล","ค่าใช้จ่ายอื่นๆ (โปรดระบุ)",{"$nulls":3},{"$f":"IFERROR(IF(Sales_Revenue=0,\"-\",ค่าใช้จ่ายในการดำเนินการ[[#This Row],[รอบระยะเวลาปัจจุบัน]]/Sales_Revenue),\"-\")","v":"-"},{"$f":"IFERROR(IF(ค่าใช้จ่ายในการดำเนินการ[[#This Row],[รอบระยะเวลาก่อนหน้า]]=ค่าใช้จ่ายในการดำเนินการ[[#This Row],[รอบระยะเวลาปัจจุบัน]],0,IF(ค่าใช้จ่ายในการดำเนินการ[[#This Row],[รอบระยะเวลาปัจจุบัน]]>ค่าใช้จ่ายในการดำเนินการ[[#This Row],[รอบระยะเวลาก่อนหน้า]],ABS((ค่าใช้จ่ายในการดำเนินการ[[#This Row],[รอบระยะเวลาปัจจุบัน]]/ค่าใช้จ่ายในการดำเนินการ[[#This Row],[รอบระยะเวลาก่อนหน้า]])-1),IF(AND(ค่าใช้จ่ายในการดำเนินการ[[#This Row],[รอบระยะเวลาปัจจุบัน]]<ค่าใช้จ่ายในการดำเนินการ[[#This Row],[รอบระยะเวลาก่อนหน้า]],ค่าใช้จ่ายในการดำเนินการ[[#This Row],[รอบระยะเวลาก่อนหน้า]]<0),-((ค่าใช้จ่ายในการดำเนินการ[[#This Row],[รอบระยะเวลาปัจจุบัน]]/ค่าใช้จ่ายในการดำเนินการ[[#This Row],[รอบระยะเวลาก่อนหน้า]])-1),(ค่าใช้จ่ายในการดำเนินการ[[#This Row],[รอบระยะเวลาปัจจุบัน]]/ค่าใช้จ่ายในการดำเนินการ[[#This Row],[รอบระยะเวลาก่อนหน้า]])-1))),\"-\")","v":{"v":0,"d":"0.00%"}},{"$f":"IFERROR(IF(ค่าใช้จ่ายในการดำเนินการ[[#This Row],[งบประมาณ]]=ค่าใช้จ่ายในการดำเนินการ[[#This Row],[รอบระยะเวลาปัจจุบัน]],0,IF(ค่าใช้จ่ายในการดำเนินการ[[#This Row],[รอบระยะเวลาปัจจุบัน]]>ค่าใช้จ่ายในการดำเนินการ[[#This Row],[งบประมาณ]],ABS((ค่าใช้จ่ายในการดำเนินการ[[#This Row],[รอบระยะเวลาปัจจุบัน]]/ค่าใช้จ่ายในการดำเนินการ[[#This Row],[งบประมาณ]])-1),IF(AND(ค่าใช้จ่ายในการดำเนินการ[[#This Row],[รอบระยะเวลาปัจจุบัน]]<ค่าใช้จ่ายในการดำเนินการ[[#This Row],[งบประมาณ]],ค่าใช้จ่ายในการดำเนินการ[[#This Row],[งบประมาณ]]<0),-((ค่าใช้จ่ายในการดำเนินการ[[#This Row],[รอบระยะเวลาปัจจุบัน]]/ค่าใช้จ่ายในการดำเนินการ[[#This Row],[งบประมาณ]])-1),(ค่าใช้จ่ายในการดำเนินการ[[#This Row],[รอบระยะเวลาปัจจุบัน]]/ค่าใช้จ่ายในการดำเนินการ[[#This Row],[งบประมาณ]])-1))),\"-\")","v":{"v":0,"d":"0.00%"}}]
[null,"ยอดรวมค่าใช้จ่ายในการดำเนินการ",null,{"$f":"SUBTOTAL(109,ค่าใช้จ่ายในการดำเนินการ[รอบระยะเวลาก่อนหน้า])","v":0},{"$f":"SUBTOTAL(109,ค่าใช้จ่ายในการดำเนินการ[งบประมาณ])","v":0},{"$f":"SUBTOTAL(109,ค่าใช้จ่ายในการดำเนินการ[รอบระยะเวลาปัจจุบัน])","v":0},{"$f":"SUBTOTAL(109,ค่าใช้จ่ายในการดำเนินการ[รอบระยะเวลาปัจจุบันคิดเป็น % ของยอดขาย])","v":{"v":0,"d":"0.00%"}},{"$f":"SUBTOTAL(109,ค่าใช้จ่ายในการดำเนินการ[% การเปลี่ยนแปลงจากรอบระยะเวลาก่อนหน้า])","v":{"v":0,"d":"0.00%"}},{"$f":"SUBTOTAL(109,ค่าใช้จ่ายในการดำเนินการ[% การเปลี่ยนแปลงจากงบประมาณ])","v":{"v":0,"d":"0.00%"}}]

{"sheet":"ภาษี","index":4,"n_rows":10,"n_cols":9,"rows_kept":10,"merged":[[0,7,2,8]]}
[null,{"$f":"ชื่อเรื่อง_เวิร์กบุ๊ก","v":"งบกำไรขาดทุน"}]
[null,{"$f":"Company_Name","v":"ชื่อบริษัท"},"ระบุเป็น 000s"]
[null,"ภาษี",{"$f":"IFERROR(ภาษี[[#Totals],[รอบระยะเวลาปัจจุบัน]],\"-\")","v":0}]
[null,"ชนิด","คำอธิบาย","รอบระยะเวลาก่อนหน้า","งบประมาณ","รอบระยะเวลาปัจจุบัน","รอบระยะเวลาปัจจุบันคิดเป็น % ของยอดขาย","% การเปลี่ยนแปลงจากรอบระยะเวลาก่อนหน้า","% การเปลี่ยนแปลงจากงบประมาณ"]
[null,"ภาษี","ภาษีเงินได้",{"$nulls":3},{"$f":"IFERROR(IF(Sales_Revenue=0,\"-\",ภาษี[[#This Row],[รอบระยะเวลาปัจจุบัน]]/Sales_Revenue),\"-\")","v":"-"},{"$f":"IFERROR(IF(ภาษี[[#This Row],[รอบระยะเวลาก่อนหน้า]]=ภาษี[[#This Row],[รอบระยะเวลาปัจจุบัน]],0,IF(ภาษี[[#This Row],[รอบระยะเวลาปัจจุบัน]]>ภาษี[[#This Row],[รอบระยะเวลาก่อนหน้า]],ABS((ภาษี[[#This Row],[รอบระยะเวลาปัจจุบัน]]/ภาษี[[#This Row],[รอบระยะเวลาก่อนหน้า]])-1),IF(AND(ภาษี[[#This Row],[รอบระยะเวลาปัจจุบัน]]<ภาษี[[#This Row],[รอบระยะเวลาก่อนหน้า]],ภาษี[[#This Row],[รอบระยะเวลาก่อนหน้า]]<0),-((ภาษี[[#This Row],[รอบระยะเวลาปัจจุบัน]]/ภาษี[[#This Row],[รอบระยะเวลาก่อนหน้า]])-1),(ภาษี[[#This Row],[รอบระยะเวลาปัจจุบัน]]/ภาษี[[#This Row],[รอบระยะเวลาก่อนหน้า]])-1))),\"-\")","v":{"v":0,"d":"0.00%"}},{"$f":"IFERROR(IF(ภาษี[[#This Row],[งบประมาณ]]=ภาษี[[#This Row],[รอบระยะเวลาปัจจุบัน]],0,IF(ภาษี[[#This Row],[รอบระยะเวลาปัจจุบัน]]>ภาษี[[#This Row],[งบประมาณ]],ABS((ภาษี[[#This Row],[รอบระยะเวลาปัจจุบัน]]/ภาษี[[#This Row],[งบประมาณ]])-1),IF(AND(ภาษี[[#This Row],[รอบระยะเวลาปัจจุบัน]]<ภาษี[[#This Row],[งบประมาณ]],ภาษี[[#This Row],[งบประมาณ]]<0),-((ภาษี[[#This Row],[รอบระยะเวลาปัจจุบัน]]/ภาษี[[#This Row],[งบประมาณ]])-1),(ภาษี[[#This Row],[รอบระยะเวลาปัจจุบัน]]/ภาษี[[#This Row],[งบประมาณ]])-1))),\"-\")","v":{"v":0,"d":"0.00%"}}]
[null,"ภาษี","ภาษีการจ้างงาน",{"$nulls":3},{"$f":"IFERROR(IF(Sales_Revenue=0,\"-\",ภาษี[[#This Row],[รอบระยะเวลาปัจจุบัน]]/Sales_Revenue),\"-\")","v":"-"},{"$f":"IFERROR(IF(ภาษี[[#This Row],[รอบระยะเวลาก่อนหน้า]]=ภาษี[[#This Row],[รอบระยะเวลาปัจจุบัน]],0,IF(ภาษี[[#This Row],[รอบระยะเวลาปัจจุบัน]]>ภาษี[[#This Row],[รอบระยะเวลาก่อนหน้า]],ABS((ภาษี[[#This Row],[รอบระยะเวลาปัจจุบัน]]/ภาษี[[#This Row],[รอบระยะเวลาก่อนหน้า]])-1),IF(AND(ภาษี[[#This Row],[รอบระยะเวลาปัจจุบัน]]<ภาษี[[#This Row],[รอบระยะเวลาก่อนหน้า]],ภาษี[[#This Row],[รอบระยะเวลาก่อนหน้า]]<0),-((ภาษี[[#This Row],[รอบระยะเวลาปัจจุบัน]]/ภาษี[[#This Row],[รอบระยะเวลาก่อนหน้า]])-1),(ภาษี[[#This Row],[รอบระยะเวลาปัจจุบัน]]/ภาษี[[#This Row],[รอบระยะเวลาก่อนหน้า]])-1))),\"-\")","v":{"v":0,"d":"0.00%"}},{"$f":"IFERROR(IF(ภาษี[[#This Row],[งบประมาณ]]=ภาษี[[#This Row],[รอบระยะเวลาปัจจุบัน]],0,IF(ภาษี[[#This Row],[รอบระยะเวลาปัจจุบัน]]>ภาษี[[#This Row],[งบประมาณ]],ABS((ภาษี[[#This Row],[รอบระยะเวลาปัจจุบัน]]/ภาษี[[#This Row],[งบประมาณ]])-1),IF(AND(ภาษี[[#This Row],[รอบระยะเวลาปัจจุบัน]]<ภาษี[[#This Row],[งบประมาณ]],ภาษี[[#This Row],[งบประมาณ]]<0),-((ภาษี[[#This Row],[รอบระยะเวลาปัจจุบัน]]/ภาษี[[#This Row],[งบประมาณ]])-1),(ภาษี[[#This Row],[รอบระยะเวลาปัจจุบัน]]/ภาษี[[#This Row],[งบประมาณ]])-1))),\"-\")","v":{"v":0,"d":"0.00%"}}]
[null,"ภาษี","ภาษีอสังหาริมทรัพย์",{"$nulls":3},{"$f":"IFERROR(IF(Sales_Revenue=0,\"-\",ภาษี[[#This Row],[รอบระยะเวลาปัจจุบัน]]/Sales_Revenue),\"-\")","v":"-"},{"$f":"IFERROR(IF(ภาษี[[#This Row],[รอบระยะเวลาก่อนหน้า]]=ภาษี[[#This Row],[รอบระยะเวลาปัจจุบัน]],0,IF(ภาษี[[#This Row],[รอบระยะเวลาปัจจุบัน]]>ภาษี[[#This Row],[รอบระยะเวลาก่อนหน้า]],ABS((ภาษี[[#This Row],[รอบระยะเวลาปัจจุบัน]]/ภาษี[[#This Row],[รอบระยะเวลาก่อนหน้า]])-1),IF(AND(ภาษี[[#This Row],[รอบระยะเวลาปัจจุบัน]]<ภาษี[[#This Row],[รอบระยะเวลาก่อนหน้า]],ภาษี[[#This Row],[รอบระยะเวลาก่อนหน้า]]<0),-((ภาษี[[#This Row],[รอบระยะเวลาปัจจุบัน]]/ภาษี[[#This Row],[รอบระยะเวลาก่อนหน้า]])-1),(ภาษี[[#This Row],[รอบระยะเวลาปัจจุบัน]]/ภาษี[[#This Row],[รอบระยะเวลาก่อนหน้า]])-1))),\"-\")","v":{"v":0,"d":"0.00%"}},{"$f":"IFERROR(IF(ภาษี[[#This Row],[งบประมาณ]]=ภาษี[[#This Row],[รอบระยะเวลาปัจจุบัน]],0,IF(ภาษี[[#This Row],[รอบระยะเวลาปัจจุบัน]]>ภาษี[[#This Row],[งบประมาณ]],ABS((ภาษี[[#This Row],[รอบระยะเวลาปัจจุบัน]]/ภาษี[[#This Row],[งบประมาณ]])-1),IF(AND(ภาษี[[#This Row],[รอบระยะเวลาปัจจุบัน]]<ภาษี[[#This Row],[งบประมาณ]],ภาษี[[#This Row],[งบประมาณ]]<0),-((ภาษี[[#This Row],[รอบระยะเวลาปัจจุบัน]]/ภาษี[[#This Row],[งบประมาณ]])-1),(ภาษี[[#This Row],[รอบระยะเวลาปัจจุบัน]]/ภาษี[[#This Row],[งบประมาณ]])-1))),\"-\")","v":{"v":0,"d":"0.00%"}}]
[null,"ภาษี","ภาษีอื่นๆ (ระบุ)",{"$nulls":3},{"$f":"IFERROR(IF(Sales_Revenue=0,\"-\",ภาษี[[#This Row],[รอบระยะเวลาปัจจุบัน]]/Sales_Revenue),\"-\")","v":"-"},{"$f":"IFERROR(IF(ภาษี[[#This Row],[รอบระยะเวลาก่อนหน้า]]=ภาษี[[#This Row],[รอบระยะเวลาปัจจุบัน]],0,IF(ภาษี[[#This Row],[รอบระยะเวลาปัจจุบัน]]>ภาษี[[#This Row],[รอบระยะเวลาก่อนหน้า]],ABS((ภาษี[[#This Row],[รอบระยะเวลาปัจจุบัน]]/ภาษี[[#This Row],[รอบระยะเวลาก่อนหน้า]])-1),IF(AND(ภาษี[[#This Row],[รอบระยะเวลาปัจจุบัน]]<ภาษี[[#This Row],[รอบระยะเวลาก่อนหน้า]],ภาษี[[#This Row],[รอบระยะเวลาก่อนหน้า]]<0),-((ภาษี[[#This Row],[รอบระยะเวลาปัจจุบัน]]/ภาษี[[#This Row],[รอบระยะเวลาก่อนหน้า]])-1),(ภาษี[[#This Row],[รอบระยะเวลาปัจจุบัน]]/ภาษี[[#This Row],[รอบระยะเวลาก่อนหน้า]])-1))),\"-\")","v":{"v":0,"d":"0.00%"}},{"$f":"IFERROR(IF(ภาษี[[#This Row],[งบประมาณ]]=ภาษี[[#This Row],[รอบระยะเวลาปัจจุบัน]],0,IF(ภาษี[[#This Row],[รอบระยะเวลาปัจจุบัน]]>ภาษี[[#This Row],[งบประมาณ]],ABS((ภาษี[[#This Row],[รอบระยะเวลาปัจจุบัน]]/ภาษี[[#This Row],[งบประมาณ]])-1),IF(AND(ภาษี[[#This Row],[รอบระยะเวลาปัจจุบัน]]<ภาษี[[#This Row],[งบประมาณ]],ภาษี[[#This Row],[งบประมาณ]]<0),-((ภาษี[[#This Row],[รอบระยะเวลาปัจจุบัน]]/ภาษี[[#This Row],[งบประมาณ]])-1),(ภาษี[[#This Row],[รอบระยะเวลาปัจจุบัน]]/ภาษี[[#This Row],[งบประมาณ]])-1))),\"-\")","v":{"v":0,"d":"0.00%"}}]
[null,"ภาษี","ภาษีอื่นๆ (ระบุ)",{"$nulls":3},{"$f":"IFERROR(IF(Sales_Revenue=0,\"-\",ภาษี[[#This Row],[รอบระยะเวลาปัจจุบัน]]/Sales_Revenue),\"-\")","v":"-"},{"$f":"IFERROR(IF(ภาษี[[#This Row],[รอบระยะเวลาก่อนหน้า]]=ภาษี[[#This Row],[รอบระยะเวลาปัจจุบัน]],0,IF(ภาษี[[#This Row],[รอบระยะเวลาปัจจุบัน]]>ภาษี[[#This Row],[รอบระยะเวลาก่อนหน้า]],ABS((ภาษี[[#This Row],[รอบระยะเวลาปัจจุบัน]]/ภาษี[[#This Row],[รอบระยะเวลาก่อนหน้า]])-1),IF(AND(ภาษี[[#This Row],[รอบระยะเวลาปัจจุบัน]]<ภาษี[[#This Row],[รอบระยะเวลาก่อนหน้า]],ภาษี[[#This Row],[รอบระยะเวลาก่อนหน้า]]<0),-((ภาษี[[#This Row],[รอบระยะเวลาปัจจุบัน]]/ภาษี[[#This Row],[รอบระยะเวลาก่อนหน้า]])-1),(ภาษี[[#This Row],[รอบระยะเวลาปัจจุบัน]]/ภาษี[[#This Row],[รอบระยะเวลาก่อนหน้า]])-1))),\"-\")","v":{"v":0,"d":"0.00%"}},{"$f":"IFERROR(IF(ภาษี[[#This Row],[งบประมาณ]]=ภาษี[[#This Row],[รอบระยะเวลาปัจจุบัน]],0,IF(ภาษี[[#This Row],[รอบระยะเวลาปัจจุบัน]]>ภาษี[[#This Row],[งบประมาณ]],ABS((ภาษี[[#This Row],[รอบระยะเวลาปัจจุบัน]]/ภาษี[[#This Row],[งบประมาณ]])-1),IF(AND(ภาษี[[#This Row],[รอบระยะเวลาปัจจุบัน]]<ภาษี[[#This Row],[งบประมาณ]],ภาษี[[#This Row],[งบประมาณ]]<0),-((ภาษี[[#This Row],[รอบระยะเวลาปัจจุบัน]]/ภาษี[[#This Row],[งบประมาณ]])-1),(ภาษี[[#This Row],[รอบระยะเวลาปัจจุบัน]]/ภาษี[[#This Row],[งบประมาณ]])-1))),\"-\")","v":{"v":0,"d":"0.00%"}}]
[null,"ยอดรวมภาษี",null,{"$f":"SUBTOTAL(109,ภาษี[รอบระยะเวลาก่อนหน้า])","v":0},{"$f":"SUBTOTAL(109,ภาษี[งบประมาณ])","v":0},{"$f":"SUBTOTAL(109,ภาษี[รอบระยะเวลาปัจจุบัน])","v":0},{"$f":"IFERROR(SUBTOTAL(109,ภาษี[รอบระยะเวลาปัจจุบันคิดเป็น % ของยอดขาย]),\"-\")","v":{"v":0,"d":"0.00%"}},{"$f":"SUBTOTAL(109,ภาษี[% การเปลี่ยนแปลงจากรอบระยะเวลาก่อนหน้า])","v":{"v":0,"d":"0.00%"}},{"$f":"SUBTOTAL(109,ภาษี[% การเปลี่ยนแปลงจากงบประมาณ])","v":{"v":0,"d":"0.00%"}}]

{"sheet":"ประเภท","index":5,"n_rows":8,"n_cols":2,"rows_kept":8}
[null,"ประเภท"]
[null,"รายได้จากการขาย"]
[null,"ต้นทุนการขาย"]
[null,"รายรับ"]
[null,"การขายและการตลาด"]
[null,"การวิจัยและการพัฒนา"]
[null,"ทั่วไปและการดูแล"]
[null,"ภาษี"]